{"text_format":"1","workbook":"xlsx","n_sheets":143,"sheets":["adakox","andrzej194","aurevoir","bartov","BeSmarter","blackgoku","Caroo","ciepol","copol1","Cybe","cycki","dadzbog","Dariel","Demand","Deykun","dimer","dptd","drain_pipes","DuDru","Elveen","emdey","ericcartman","evenstar","Faraleith","fisti","frizik","Gadzinski","Gangrel","Gigi_","godfath3r","goomowy","GrabkaMan","guarani","gugas","Guinness","heeidi","izzardPL","hqvkamil","iotochodzi","JangoFett","Janodemon","jaras2","jestemrowerem","JokerLine","Jumper","_K4milk","kamil89qwerty","karvon","Konalio","kontra","korpiel","korzenny","Kozzi","Kresowiak","krzysiulek","ktoosiu","Kuba_prezes","Loynis","Lsrd","lukaszwasyl","maciao","madev","Madius","mani3kxc","manieq88","marekq","margottst","Mario_lgw","Mariusz_Drugi","Markos90","Marmite","maslan63","Masterczulki","mBartek89","mechaniczny_kurak","Meffx","mejsieq","michal__q","mizaj","mocher_kg","moss4d","m_pietrzak","NaNiczymSieNieZnam","necropoleis","Nered","nerqus","noway","Ogoor","paprocyniok","Patres","paweel","pawlakppp","peradon","piasek43","PierwszyOstatniraz","poprostuMarcin","ppj","Pyrakus","rexio","Rubens","sayane","Schwarz_Charakter","Scorpio412","SiekYersky","Skurwozaur","Smookie","Solitary_Man","Sordi","Splot","stefan_pompka","stepBYstep","Strzalka","surma","sztukamasazu","szuwarek_mini","Takumi","Tapirro","teryuu","thetot","tiksiu","tomek860827","tomy86","turbosowa","Queltas","Quilo","ursua","Vegetassj5","ViZ_P","_w3s","werniol","WesolyMorswin","winnux","wojjaskula","WujekWacek","wwojtus2304","xim","yawor","zacietrzewiony","zepsutyzachod","zioom","Zlowrogi_Opos","Szablon","Razem"],"not_rendered":{"charts":0,"images":0,"macros":1,"external_links":0,"defined_names":2,"comments":0,"pivot_tables":0},"unopened":[],"bounds":{"document_bytes":16777216,"sheet_cells":100000,"rows_first":2000,"rows_last":500,"rows_between":2000,"halvings":0,"cell_chars":16384,"cell_head_chars":4096},"cells_cut":0,"cells_raw":0,"read":"whole","date_system":"1900"}

{"sheet":"adakox","index":0,"n_rows":8,"n_cols":8,"rows_kept":8,"cut":false,"hidden":false,"merged":[]}
["Data biegu","Przebiegnięte km","Czas biegu","Średnia prędkość","Miesiąc","Dni tygodnia","Łącznie przebiegniętych kilometrów","z 6259,6 km"]
["23-03-2013",2.5,null,null,"Marzec","Poniedziałek",{"$f":"SUM(B2:B21)","v":8.74}]
["24-03-2013",2.96,"19m:30s","6:35 min/km","Marzec","Wtorek"]
["27-03-2013",3.28,"22m:00s","6:42 min/km","Marzec","Środa"]
[null,null,null,null,null,"Czwartek"]
[null,null,null,null,null,"Piątek"]
[null,null,null,null,null,"Sobota"]
[null,null,null,null,null,"Niedziela"]

{"sheet":"andrzej194","index":1,"n_rows":11,"n_cols":8,"rows_kept":11,"cut":false,"hidden":false,"merged":[]}
["Data biegu","Przebiegnięte km","Czas biegu","Średnia prędkość","Miesiąc","Dni tygodnia","Łącznie przebiegniętych kilometrów","z 6259,6 km"]
["27-02-2013",9.4700000000000006,"1g:03m:09s","6:40 min/km","Luty","Poniedziałek",{"$f":"SUM(B2:B23)","v":93.88000000000001}]
["4-03-2013",9.5399999999999991,"56m:04s","5:53 min/km","Marzec","Wtorek"]
["5-03-2013",10.76,"1g:01m:45s","5:44 min/km","Marzec","Środa"]
["8-03-2013",3,"15m:36s","5:12 min/km","Marzec","Czwartek"]
["11-03-2013",11.48,"1g:09m:15s","6:02 min/km","Marzec","Piątek"]
["12-03-2013",11.72,"1g:08m:57s","5:53 min/km","Marzec","Sobota"]
["13-03-2013",11.9,"1g:07m:54s","5:42 min/km","Marzec","Niedziela"]
["15-03-2013",2.95,"14m:31s","4:55 min/km","Marzec"]
["16-03-2013",11,"1g:02m:56s","5:43 min/km","Marzec"]
["18-03-2013",12.06,"1g:13m:59s","6:08 min/km","Marzec"]

{"sheet":"aurevoir","index":2,"n_rows":8,"n_cols":8,"rows_kept":8,"cut":false,"hidden":false,"merged":[]}
["Data biegu","Przebiegnięte km","Czas biegu","Średnia prędkość","Miesiąc","Dni tygodnia","Łącznie przebiegniętych kilometrów","z 6259,6 km"]
["15-03-2013",3.32,null,null,"Marzec","Poniedziałek",{"$f":"SUM(B2:B17)","v":3.32}]
[null,null,null,null,null,"Wtorek"]
[null,null,null,null,null,"Środa"]
[null,null,null,null,null,"Czwartek"]
[null,null,null,null,null,"Piątek"]
[null,null,null,null,null,"Sobota"]
[null,null,null,null,null,"Niedziela"]

{"sheet":"bartov","index":3,"n_rows":8,"n_cols":8,"rows_kept":8,"cut":false,"hidden":false,"merged":[]}
["Data biegu","Przebiegnięte km","Czas biegu","Średnia prędkość","Miesiąc","Dni tygodnia","Łącznie przebiegniętych kilometrów","z 6259,6 km"]
["1-03-2013",3,null,null,"Marzec","Poniedziałek",{"$f":"SUM(B2:B24)","v":106.5}]
["2-03-2013",5.5,null,null,"Marzec","Wtorek"]
["5-03-2013",8,null,null,"Marzec","Środa"]
["12-03-2013",32.5,null,null,"Marzec","Czwartek"]
["18-03-2013",27.5,null,null,"Marzec","Piątek"]
["2-04-2013",30,null,null,"Kwiecień","Sobota"]
[null,null,null,null,null,"Niedziela"]

{"sheet":"BeSmarter","index":4,"n_rows":8,"n_cols":8,"rows_kept":8,"cut":false,"hidden":false,"merged":[]}
["Data biegu","Przebiegnięte km","Czas biegu","Średnia prędkość","Miesiąc","Dni tygodnia","Łącznie przebiegniętych kilometrów","z 6259,6 km"]
["8-03-2013",2.8,null,null,"Marzec","Poniedziałek",{"$f":"SUM(B2:B22)","v":2.8}]
[null,null,null,null,null,"Wtorek"]
[null,null,null,null,null,"Środa"]
[null,null,null,null,null,"Czwartek"]
[null,null,null,null,null,"Piątek"]
[null,null,null,null,null,"Sobota"]
[null,null,null,null,null,"Niedziela"]

{"sheet":"blackgoku","index":5,"n_rows":8,"n_cols":8,"rows_kept":8,"cut":false,"hidden":false,"merged":[]}
["Data biegu","Przebiegnięte km","Czas biegu","Średnia prędkość","Miesiąc","Dni tygodnia","Łącznie przebiegniętych kilometrów","z 6259,6 km"]
["30-03-2013",2,null,null,"Marzec","Poniedziałek",{"$f":"SUM(B2:B22)","v":2}]
[null,null,null,null,null,"Wtorek"]
[null,null,null,null,null,"Środa"]
[null,null,null,null,null,"Czwartek"]
[null,null,null,null,null,"Piątek"]
[null,null,null,null,null,"Sobota"]
[null,null,null,null,null,"Niedziela"]

{"sheet":"Caroo","index":6,"n_rows":8,"n_cols":8,"rows_kept":8,"cut":false,"hidden":false,"merged":[]}
["Data biegu","Przebiegnięte km","Czas biegu","Średnia prędkość","Miesiąc","Dni tygodnia","Łącznie przebiegniętych kilometrów","z 6259,6 km"]
["27-02-2013",8.1300000000000008,null,null,"Luty","Poniedziałek",{"$f":"SUM(B2:B16)","v":20.53}]
["3-03-2013",12.4,null,null,"Marzec","Wtorek"]
[null,null,null,null,null,"Środa"]
[null,null,null,null,null,"Czwartek"]
[null,null,null,null,null,"Piątek"]
[null,null,null,null,null,"Sobota"]
[null,null,null,null,null,"Niedziela"]

{"sheet":"ciepol","index":7,"n_rows":8,"n_cols":8,"rows_kept":8,"cut":false,"hidden":false,"merged":[]}
["Data biegu","Przebiegnięte km","Czas biegu","Średnia prędkość","Miesiąc","Dni tygodnia","Łącznie przebiegniętych kilometrów","z 6259,6 km"]
["27-02-2013",10,null,null,"Luty","Poniedziałek",{"$f":"SUM(B2:B24)","v":66}]
["4-03-2013",10,null,null,"Marzec","Wtorek"]
["7-03-2013",10,null,null,"Marzec","Środa"]
["10-03-2013",16,null,null,"Marzec","Czwartek"]
["18-03-2013",10,null,null,"Marzec","Piątek"]
["3-04-2013",10,null,null,"Kwiecień","Sobota"]
[null,null,null,null,null,"Niedziela"]

{"sheet":"copol1","index":8,"n_rows":8,"n_cols":8,"rows_kept":8,"cut":false,"hidden":false,"merged":[]}
["Data biegu","Przebiegnięte km","Czas biegu","Średnia prędkość","Miesiąc","Dni tygodnia","Łącznie przebiegniętych kilometrów","z 6259,6 km"]
["10-03-2013",7.2,null,null,"Marzec","Poniedziałek",{"$f":"SUM(B2:B20)","v":14.4}]
["28-03-2013",7.2,null,null,"Marzec","Wtorek"]
[null,null,null,null,null,"Środa"]
[null,null,null,null,null,"Czwartek"]
[null,null,null,null,null,"Piątek"]
[null,null,null,null,null,"Sobota"]
[null,null,null,null,null,"Niedziela"]

{"sheet":"Cybe","index":9,"n_rows":8,"n_cols":8,"rows_kept":8,"cut":false,"hidden":false,"merged":[]}
["Data biegu","Przebiegnięte km","Czas biegu","Średnia prędkość","Miesiąc","Dni tygodnia","Łącznie przebiegniętych kilometrów","z 6259,6 km"]
["4-03-2013",5.4,null,null,"Marzec","Poniedziałek",{"$f":"SUM(B2:B25)","v":13.219999999999999}]
["6-03-2013",3.8,"26m:25s","8:18 min/km","Marzec","Wtorek"]
["8-03-2013",4.0199999999999996,"28m:03s","6:59 min/km","Marzec","Środa"]
[null,null,null,null,null,"Czwartek"]
[null,null,null,null,null,"Piątek"]
[null,null,null,null,null,"Sobota"]
[null,null,null,null,null,"Niedziela"]

{"sheet":"cycki","index":10,"n_rows":8,"n_cols":8,"rows_kept":8,"cut":false,"hidden":false,"merged":[]}
["Data biegu","Przebiegnięte km","Czas biegu","Średnia prędkość","Miesiąc","Dni tygodnia","Łącznie przebiegniętych kilometrów","z 6259,6 km"]
["4-03-2013",3,null,null,"Marzec","Poniedziałek",{"$f":"SUM(B2:B21)","v":3}]
[null,null,null,null,null,"Wtorek"]
[null,null,null,null,null,"Środa"]
[null,null,null,null,null,"Czwartek"]
[null,null,null,null,null,"Piątek"]
[null,null,null,null,null,"Sobota"]
[null,null,null,null,null,"Niedziela"]

{"sheet":"dadzbog","index":11,"n_rows":8,"n_cols":8,"rows_kept":8,"cut":false,"hidden":false,"merged":[]}
["Data biegu","Przebiegnięte km","Czas biegu","Średnia prędkość","Miesiąc","Dni tygodnia","Łącznie przebiegniętych kilometrów","z 6259,6 km"]
["28-02-2013",3.9,null,null,"Luty","Poniedziałek",{"$f":"SUM(B2:B25)","v":43.209999999999994}]
["6-03-2013",8.0399999999999991,"44m:24s","5:31 min/km","Marzec","Wtorek"]
["13-03-2013",7.13,"37m:23s","5:15 min/km","Marzec","Środa"]
["20-03-2013",7.02,"36m:08s","5:09 min/km","Marzec","Czwartek"]
["20-03-2013",0.83,"6m:20s","7:36 min/km","Marzec","Piątek"]
["20-03-2013",12.46,"1g:07m:34s","5:25 min/km","Marzec","Sobota"]
["3-04-2013",3.83,"12m:14s","4:25 min/km","Kwiecień","Niedziela"]

{"sheet":"Dariel","index":12,"n_rows":8,"n_cols":8,"rows_kept":8,"cut":false,"hidden":false,"merged":[]}
["Data biegu","Przebiegnięte km","Czas biegu","Średnia prędkość","Miesiąc","Dni tygodnia","Łącznie przebiegniętych kilometrów","z 6259,6 km"]
["17-03-2013",3.55,"22m:10s","6:15 min/km","Marzec","Poniedziałek",{"$f":"SUM(B2:B18)","v":19.239999999999998}]
["29-03-2013",15.69,"1g:49m:49s","7:00 min/km","Marzec","Wtorek"]
[null,null,null,null,null,"Środa"]
[null,null,null,null,null,"Czwartek"]
[null,null,null,null,null,"Piątek"]
[null,null,null,null,null,"Sobota"]
[null,null,null,null,null,"Niedziela"]

{"sheet":"Demand","index":13,"n_rows":8,"n_cols":8,"rows_kept":8,"cut":false,"hidden":false,"merged":[]}
["Data biegu","Przebiegnięte km","Czas biegu","Średnia prędkość","Miesiąc","Dni tygodnia","Łącznie przebiegniętych kilometrów","z 6259,6 km"]
["10-03-2013",16.2,null,null,"Marzec","Poniedziałek",{"$f":"SUM(B2:B23)","v":16.2}]
[null,null,null,null,null,"Wtorek"]
[null,null,null,null,null,"Środa"]
[null,null,null,null,null,"Czwartek"]
[null,null,null,null,null,"Piątek"]
[null,null,null,null,null,"Sobota"]
[null,null,null,null,null,"Niedziela"]

{"sheet":"Deykun","index":14,"n_rows":8,"n_cols":8,"rows_kept":8,"cut":false,"hidden":false,"merged":[]}
["Data biegu","Przebiegnięte km","Czas biegu","Średnia prędkość","Miesiąc","Dni tygodnia","Łącznie przebiegniętych kilometrów","z 6259,6 km"]
["5-03-2013",2.13,null,null,"Marzec","Poniedziałek",{"$f":"SUM(B2:B26)","v":13.209999999999999}]
["9-03-2013",3.24,null,null,"Marzec","Wtorek"]
["15-03-2013",4.9400000000000004,null,null,"Marzec","Środa"]
["18-03-2013",1.45,null,null,"Marzec","Czwartek"]
["20-03-2013",1.45,null,null,"Marzec","Piątek"]
[null,null,null,null,null,"Sobota"]
[null,null,null,null,null,"Niedziela"]

{"sheet":"dimer","index":15,"n_rows":10,"n_cols":8,"rows_kept":10,"cut":false,"hidden":false,"merged":[]}
["Data biegu","Przebiegnięte km","Czas biegu","Średnia prędkość","Miesiąc","Dni tygodnia","Łącznie przebiegniętych kilometrów","z 6259,6 km"]
["27-02-2013",8.7899999999999991,"51m:55s","5:54 min/km","Luty","Poniedziałek",{"$f":"SUM(B2:B23)","v":116.21}]
["28-02-2013",8.7100000000000009,"48m:47s","5:36 min/km","Luty","Wtorek"]
["2-03-2013",10.28,"56m:33s","5:30 min/km","Marzec","Środa"]
["3-03-2013",18.66,"1g:48m:50s","5:50 min/km","Marzec","Czwartek"]
["6-03-2013",18.8,"2g:02m:24s","6:31 min/km","Marzec","Piątek"]
["12-03-2013",8.68,null,null,"Marzec","Sobota"]
["15-03-2013",10.28,null,null,"Marzec","Niedziela"]
["17-03-2013",20.92,"2g:00m:58s","5:47 min/km","Marzec"]
["23-03-2013",11.09,"1g:05m:35s","5:55 min/km","Marzec"]

{"sheet":"dptd","index":16,"n_rows":8,"n_cols":8,"rows_kept":8,"cut":false,"hidden":false,"merged":[]}
["Data biegu","Przebiegnięte km","Czas biegu","Średnia prędkość","Miesiąc","Dni tygodnia","Łącznie przebiegniętych kilometrów","z 6259,6 km"]
["5-03-2013",6.79,null,null,"Marzec","Poniedziałek",{"$f":"SUM(B2:B24)","v":6.79}]
[null,null,null,null,null,"Wtorek"]
[null,null,null,null,null,"Środa"]
[null,null,null,null,null,"Czwartek"]
[null,null,null,null,null,"Piątek"]
[null,null,null,null,null,"Sobota"]
[null,null,null,null,null,"Niedziela"]

{"sheet":"drain_pipes","index":17,"n_rows":8,"n_cols":8,"rows_kept":8,"cut":false,"hidden":false,"merged":[]}
["Data biegu","Przebiegnięte km","Czas biegu","Średnia prędkość","Miesiąc","Dni tygodnia","Łącznie przebiegniętych kilometrów","z 6259,6 km"]
["7-03-2013",3.59,"18m:48s","5:14 min/km","Marzec","Poniedziałek",{"$f":"SUM(B2:B26)","v":14.99}]
["10-03-2013",5.83,"32m:59s","5:39 min/km","Marzec","Wtorek"]
["16-03-2013",5.57,"28m:53s","5:11 min/km","Marzec","Środa"]
[null,null,null,null,null,"Czwartek"]
[null,null,null,null,null,"Piątek"]
[null,null,null,null,null,"Sobota"]
[null,null,null,null,null,"Niedziela"]

{"sheet":"DuDru","index":18,"n_rows":8,"n_cols":8,"rows_kept":8,"cut":false,"hidden":false,"merged":[]}
["Data biegu","Przebiegnięte km","Czas biegu","Średnia prędkość","Miesiąc","Dni tygodnia","Łącznie przebiegniętych kilometrów","z 6259,6 km"]
["4-03-2013",5.67,"31m:45s","5:36 min/km","Marzec","Poniedziałek",{"$f":"SUM(B2:B20)","v":5.67}]
[null,null,null,null,null,"Wtorek"]
[null,null,null,null,null,"Środa"]
[null,null,null,null,null,"Czwartek"]
[null,null,null,null,null,"Piątek"]
[null,null,null,null,null,"Sobota"]
[null,null,null,null,null,"Niedziela"]

{"sheet":"Elveen","index":19,"n_rows":19,"n_cols":8,"rows_kept":19,"cut":false,"hidden":false,"merged":[]}
["Data biegu","Przebiegnięte km","Czas biegu","Średnia prędkość","Miesiąc","Dni tygodnia","Łącznie przebiegniętych kilometrów","z 6259,6 km"]
["27-02-2013",8.5,null,null,"Luty","Poniedziałek",{"$f":"SUM(B2:B28)","v":185.92000000000002}]
["1-03-2013",9.6999999999999993,null,null,"Marzec","Wtorek"]
["3-03-2013",20.2,null,null,"Marzec","Środa"]
["5-03-2013",9.6,null,null,"Marzec","Czwartek"]
["6-03-2013",8.5,null,null,"Marzec","Piątek"]
["8-03-2013",8.4,null,null,"Marzec","Sobota"]
["14-03-2013",5.5,null,null,"Marzec","Niedziela"]
["16-03-2013",6.7,null,null,"Marzec"]
["17-03-2013",12.2,null,null,"Marzec"]
["19-03-2013",8.4,null,null,"Marzec"]
["22-03-2013",6.2,null,null,"Marzec"]
["24-03-2013",21.01,null,null,"Marzec"]
["27-03-2013",8.4,null,null,"Marzec"]
["28-03-2013",8.1,null,null,"Marzec"]
["30-03-2013",19.5,null,null,"Marzec"]
["1-04-2013",7.01,null,null,"Kwiecień"]
["3-04-2013",8.4,null,null,"Kwiecień"]
["5-04-2013",9.6,null,null,"Kwiecień"]

{"sheet":"emdey","index":20,"n_rows":8,"n_cols":8,"rows_kept":8,"cut":false,"hidden":false,"merged":[]}
["Data biegu","Przebiegnięte km","Czas biegu","Średnia prędkość","Miesiąc","Dni tygodnia","Łącznie przebiegniętych kilometrów","z 6259,6 km"]
["6-03-2013",7.14,null,null,"Marzec","Poniedziałek",{"$f":"SUM(B2:B30)","v":7.14}]
[null,null,null,null,null,"Wtorek"]
[null,null,null,null,null,"Środa"]
[null,null,null,null,null,"Czwartek"]
[null,null,null,null,null,"Piątek"]
[null,null,null,null,null,"Sobota"]
[null,null,null,null,null,"Niedziela"]

{"sheet":"ericcartman","index":21,"n_rows":8,"n_cols":8,"rows_kept":8,"cut":false,"hidden":false,"merged":[]}
["Data biegu","Przebiegnięte km","Czas biegu","Średnia prędkość","Miesiąc","Dni tygodnia","Łącznie przebiegniętych kilometrów","z 6259,6 km"]
["4-03-2013",19,null,null,"Marzec","Poniedziałek",{"$f":"SUM(B2:B21)","v":24}]
["3-04-2013",5,null,null,"Kwiecień","Wtorek"]
[null,null,null,null,null,"Środa"]
[null,null,null,null,null,"Czwartek"]
[null,null,null,null,null,"Piątek"]
[null,null,null,null,null,"Sobota"]
[null,null,null,null,null,"Niedziela"]

{"sheet":"evenstar","index":22,"n_rows":8,"n_cols":8,"rows_kept":8,"cut":false,"hidden":false,"merged":[]}
["Data biegu","Przebiegnięte km","Czas biegu","Średnia prędkość","Miesiąc","Dni tygodnia","Łącznie przebiegniętych kilometrów","z 6259,6 km"]
["2-03-2013",2.2000000000000002,null,null,"Marzec","Poniedziałek",{"$f":"SUM(B2:B25)","v":5.4}]
["1-04-2013",3.2,null,null,"Kwiecień","Wtorek"]
[null,null,null,null,null,"Środa"]
[null,null,null,null,null,"Czwartek"]
[null,null,null,null,null,"Piątek"]
[null,null,null,null,null,"Sobota"]
[null,null,null,null,null,"Niedziela"]

{"sheet":"Faraleith","index":23,"n_rows":14,"n_cols":8,"rows_kept":14,"cut":false,"hidden":false,"merged":[]}
["Data biegu","Przebiegnięte km","Czas biegu","Średnia prędkość","Miesiąc","Dni tygodnia","Łącznie przebiegniętych kilometrów","z 6259,6 km"]
["27-02-2013",8.86,"52m:10s","5:53 min/km","Luty","Poniedziałek",{"$f":"SUM(B2:B29)","v":91.5}]
["6-03-2013",7.61,"49m:14s","6:28 min/k","Marzec","Wtorek"]
["8-03-2013",8.42,"29m:10s","6:03 min/km","Marzec","Środa"]
["10-03-2013",10.24,"1g:03m:36s","6:13 min/km","Marzec","Czwartek"]
["13-03-2013",4.25,"28m:59s","6:49 min/km","Marzec","Piątek"]
["17-03-2013",7.96,"54m:49s","6:53 min/km","Marzec","Sobota"]
["20-03-2013",5,"35m:33s","7:07 min/km","Marzec","Niedziela"]
["22-03-2013",5.3,"37m:38s","7:06 min/km","Marzec"]
["24-03-2013",11.19,"1g:10m:22s","6:17 min/km","Marzec"]
["25-03-2013",6.96,"47m:10s","6:47 min/km","Marzec"]
["29-03-2013",3.67,"22m:46s","6:12 min/km","Marzec"]
["30-03-2013",7.17,"42m:04s","5:52 min/km","Marzec"]
["5-04-2013",4.87,null,null,"Kwiecień"]

{"sheet":"fisti","index":24,"n_rows":8,"n_cols":8,"rows_kept":8,"cut":false,"hidden":false,"merged":[]}
["Data biegu","Przebiegnięte km","Czas biegu","Średnia prędkość","Miesiąc","Dni tygodnia","Łącznie przebiegniętych kilometrów","z 6259,6 km"]
["27-02-1013",2.02,null,null,"Luty","Poniedziałek",{"$f":"SUM(B2:B22)","v":21.75}]
["2-03-2013",2.1800000000000002,null,null,"Marzec","Wtorek"]
["6-03-2013",2.5099999999999998,null,null,"Marzec","Środa"]
["7-03-2013",5.73,null,null,"Marzec","Czwartek"]
["12-03-2013",2.81,null,null,"Marzec","Piątek"]
["19-03-2013",3,null,null,"Marzec","Sobota"]
["25-03-2013",3.5,null,null,"Marzec","Niedziela"]

{"sheet":"frizik","index":25,"n_rows":21,"n_cols":8,"rows_kept":21,"cut":false,"hidden":false,"merged":[]}
["Data biegu","Przebiegnięte km","Czas biegu","Średnia prędkość","Miesiąc","Dni tygodnia","Łącznie przebiegniętych kilometrów","z 6259,6 km"]
["27-02-2013",3.4,"20m:15s","5:58 min/km","Luty","Poniedziałek",{"$f":"SUM(B2:B24)","v":173.12}]
["4-03-2013",14.45,"40m:09s","6:07 min/km","Marzec","Wtorek"]
["6-03-2013",4.24,"26m:56s","6:21 min/km","Marzec","Środa"]
["8-03-2013",7.66,"44m:36s","5:49 min/km","Marzec","Czwartek"]
["11-03-2013",18.63,"1g:54m:12s","6:08 min/km","Marzec","Piątek"]
["13-03-2013",7.9,"46m:09s","5:51 min/km","Marzec","Sobota"]
["14-03-2013",7.71,"42m:16s","5:29 min/km","Marzec","Niedziela"]
["15-03-2013",7.44,"42m:19s","5:41 min/km","Marzec"]
["17-03-2013",5.31,"29m:59s","5:39 min/km","Marzec"]
["18-03-2013",23.12,"2g:17m:30s","5:57 min/km","Marzec"]
["20-03-2013",5.41,"31m:51s","5:53 min/km","Marzec"]
["21-03-2013",8.4700000000000006,"46m:00s","5:26 min/km","Marzec"]
["22-03-2013",3.93,"22m:02s","5:37 min/km","Marzec"]
["25-03-2013",20.92,"2g:01m:13s","5:48 min/km","Marzec"]
["29-03-2013",8.93,"48m:59s","5:29 min/km","Marzec"]
["30-03-2013",2,"14m:32s","7:16 min/km","Marzec"]
["30-03-2013",7.44,"46m:57s","6:19 min/km","Marzec"]
["1-04-2013",6.45,"46m:42s","7:14 min/km","Kwiecień"]
["4-04-2013",4.8099999999999996,"26m:24s","5:29 min/km","Kwiecień"]
["5-04-2013",4.9000000000000004,"26m:08s","5:20 min/km","Kwiecień"]

{"sheet":"Gadzinski","index":26,"n_rows":8,"n_cols":8,"rows_kept":8,"cut":false,"hidden":false,"merged":[]}
["Data biegu","Przebiegnięte km","Czas biegu","Średnia prędkość","Miesiąc","Dni tygodnia","Łącznie przebiegniętych kilometrów","z 6259,6 km"]
["2-03-2013",8,null,null,"Marzec","Poniedziałek",{"$f":"SUM(B2:B22)","v":14.68}]
["6-03-2013",6.68,null,null,"Marzec","Wtorek"]
[null,null,null,null,null,"Środa"]
[null,null,null,null,null,"Czwartek"]
[null,null,null,null,null,"Piątek"]
[null,null,null,null,null,"Sobota"]
[null,null,null,null,null,"Niedziela"]

{"sheet":"Gangrel","index":27,"n_rows":8,"n_cols":8,"rows_kept":8,"cut":false,"hidden":false,"merged":[]}
["Data biegu","Przebiegnięte km","Czas biegu","Średnia prędkość","Miesiąc","Dni tygodnia","Łącznie przebiegniętych kilometrów","z 6259,6 km"]
["20-03-2013",8.64,"45m:42s","5:17 min/km","Marzec","Poniedziałek",{"$f":"SUM(B2:B19)","v":36.22}]
["25-03-2013",9.2200000000000006,"46m:44s","5:04 min/km","Marzec","Wtorek"]
["2-04-2013",9.25,"45m:41s","4:56 min/km","Kwiecień","Środa"]
["4-04-2013",9.11,"44m:50s","4:55 min/km","Kwiecień","Czwartek"]
[null,null,null,null,null,"Piątek"]
[null,null,null,null,null,"Sobota"]
[null,null,null,null,null,"Niedziela"]

{"sheet":"Gigi_","index":28,"n_rows":8,"n_cols":8,"rows_kept":8,"cut":false,"hidden":false,"merged":[]}
["Data biegu","Przebiegnięte km","Czas biegu","Średnia prędkość","Miesiąc","Dni tygodnia","Łącznie przebiegniętych kilometrów","z 6259,6 km"]
["27-02-2013",3.6,null,null,"Luty","Poniedziałek",{"$f":"SUM(B2:B17)","v":21.6}]
["27-02-2013",3.6,null,null,"Luty","Wtorek"]
["4-03-2013",3.6,null,null,"Marzec","Środa"]
["5-03-2013",3.6,null,null,"Marzec","Czwartek"]
["19-03-2013",3.6,null,null,"Marzec","Piątek"]
["25-03-2013",3.6,null,null,"Marzec","Sobota"]
[null,null,null,null,null,"Niedziela"]

{"sheet":"godfath3r","index":29,"n_rows":13,"n_cols":8,"rows_kept":13,"cut":false,"hidden":false,"merged":[]}
["Data biegu","Przebiegnięte km","Czas biegu","Średnia prędkość","Miesiąc","Dni tygodnia","Łącznie przebiegniętych kilometrów","z 6259,6 km"]
["8-03-2013",11.1,null,null,"Marzec","Poniedziałek",{"$f":"SUM(B2:B19)","v":75.859999999999985}]
["13-03-2013",3.05,null,null,"Marzec","Wtorek"]
["15-03-2013",10.08,null,null,"Marzec","Środa"]
["18-03-2013",3.08,null,null,"Marzec","Czwartek"]
["20-03-2013",3.1,null,null,"Marzec","Piątek"]
["22-03-2013",10.8,null,null,"Marzec","Sobota"]
["22-03-2013",3.13,null,null,"Marzec","Niedziela"]
["27-03-2013",3.15,null,null,"Marzec"]
["29-03-2013",5.72,null,null,"Marzec"]
["2-04-2013",5.72,null,null,"Kwiecień"]
["4-04-2013",5.83,null,null,"Kwiecień"]
["6-04-2013",11.1,null,null,"Kwiecień"]

{"sheet":"goomowy","index":30,"n_rows":8,"n_cols":8,"rows_kept":8,"cut":false,"hidden":false,"merged":[]}
["Data biegu","Przebiegnięte km","Czas biegu","Średnia prędkość","Miesiąc","Dni tygodnia","Łącznie przebiegniętych kilometrów","z 6259,6 km"]
["2-03-2013",10,null,null,"Marzec","Poniedziałek",{"$f":"SUM(B2:B24)","v":60.900000000000006}]
["5-03-2013",8.5,null,null,"Marzec","Wtorek"]
["8-03-2013",8.1999999999999993,null,null,"Marzec","Środa"]
["12-03-2013",8,null,null,"Marzec","Czwartek"]
["14-03-2013",8.1999999999999993,null,null,"Marzec","Piątek"]
["15-03-2013",7.5,"1g:00m:00s",null,"Marzec","Sobota"]
["18-03-2013",10.5,"1g:10m:00s",null,"Marzec","Niedziela"]

{"sheet":"GrabkaMan","index":31,"n_rows":9,"n_cols":8,"rows_kept":9,"cut":false,"hidden":false,"merged":[]}
["Data biegu","Przebiegnięte km","Czas biegu","Średnia prędkość","Miesiąc","Dni tygodnia","Łącznie przebiegniętych kilometrów","z 6259,6 km"]
["13-03-2013",4.83,null,null,"Marzec","Poniedziałek",{"$f":"SUM(B2:B14)","v":38.400000000000006}]
["15-03-2013",5.63,null,null,"Marzec","Wtorek"]
["20-03-2013",5,null,null,"Marzec","Środa"]
["22-03-2013",5,null,null,"Marzec","Czwartek"]
["25-03-2013",7.24,null,null,"Marzec","Piątek"]
["27-03-2013",4.2,null,null,"Marzec","Sobota"]
["1-04-2013",3.5,null,null,"Kwiecień","Niedziela"]
["2-04-2013",3,null,null,"Kwiecień"]

{"sheet":"guarani","index":32,"n_rows":8,"n_cols":8,"rows_kept":8,"cut":false,"hidden":false,"merged":[]}
["Data biegu","Przebiegnięte km","Czas biegu","Średnia prędkość","Miesiąc","Dni tygodnia","Łącznie przebiegniętych kilometrów","z 6259,6 km"]
["14-03-2013",3.9,null,null,"Marzec","Poniedziałek",{"$f":"SUM(B2:B17)","v":3.9}]
[null,null,null,null,null,"Wtorek"]
[null,null,null,null,null,"Środa"]
[null,null,null,null,null,"Czwartek"]
[null,null,null,null,null,"Piątek"]
[null,null,null,null,null,"Sobota"]
[null,null,null,null,null,"Niedziela"]

{"sheet":"gugas","index":33,"n_rows":8,"n_cols":8,"rows_kept":8,"cut":false,"hidden":false,"merged":[]}
["Data biegu","Przebiegnięte km","Czas biegu","Średnia prędkość","Miesiąc","Dni tygodnia","Łącznie przebiegniętych kilometrów","z 6259,6 km"]
["5-03-2013",4.2,null,null,"Marzec","Poniedziałek",{"$f":"SUM(B2:B26)","v":10.100000000000001}]
["11-03-2013",3.6,null,null,"Marzec","Wtorek"]
["14-03-2013",2.2999999999999998,null,null,"Marzec","Środa"]
[null,null,null,null,null,"Czwartek"]
[null,null,null,null,null,"Piątek"]
[null,null,null,null,null,"Sobota"]
[null,null,null,null,null,"Niedziela"]

{"sheet":"Guinness","index":34,"n_rows":8,"n_cols":8,"rows_kept":8,"cut":false,"hidden":false,"merged":[]}
["Data biegu","Przebiegnięte km","Czas biegu","Średnia prędkość","Miesiąc","Dni tygodnia","Łącznie przebiegniętych kilometrów","z 6259,6 km"]
["10-03-2013",3.32,"19m:39s","5:56 min/km","Marzec","Poniedziałek",{"$f":"SUM(B2:B25)","v":3.32}]
[null,null,null,null,null,"Wtorek"]
[null,null,null,null,null,"Środa"]
[null,null,null,null,null,"Czwartek"]
[null,null,null,null,null,"Piątek"]
[null,null,null,null,null,"Sobota"]
[null,null,null,null,null,"Niedziela"]

{"sheet":"heeidi","index":35,"n_rows":8,"n_cols":8,"rows_kept":8,"cut":false,"hidden":false,"merged":[]}
["Data biegu","Przebiegnięte km","Czas biegu","Średnia prędkość","Miesiąc","Dni tygodnia","Łącznie przebiegniętych kilometrów","z 6259,6 km"]
["28-02-2013",6,null,null,"Luty","Poniedziałek",{"$f":"SUM(B2:B28)","v":6}]
[null,null,null,null,null,"Wtorek"]
[null,null,null,null,null,"Środa"]
[null,null,null,null,null,"Czwartek"]
[null,null,null,null,null,"Piątek"]
[null,null,null,null,null,"Sobota"]
[null,null,null,null,null,"Niedziela"]

{"sheet":"izzardPL","index":36,"n_rows":8,"n_cols":8,"rows_kept":8,"cut":false,"hidden":false,"merged":[]}
["Data biegu","Przebiegnięte km","Czas biegu","Średnia prędkość","Miesiąc","Dni tygodnia","Łącznie przebiegniętych kilometrów","z 6259,6 km"]
["5-03-2013",7.12,"39m:24s","5:32 min/km","Marzec","Poniedziałek",{"$f":"SUM(B2:B25)","v":29.99}]
["5-03-2013",4.3600000000000003,"26m:13s","6:01 min/km","Marzec","Wtorek"]
["9-03-2013",2.06,"13m:23s","6:31 min/km","Marzec","Środa"]
["16-03-2013",3.25,"17m:07s",null,"Marzec","Czwartek"]
["27-03-2013",8.1999999999999993,"49m:54s","6:05 min/km","Marzec","Piątek"]
["3-04-2013",5,null,null,"Kwiecień","Sobota"]
[null,null,null,null,null,"Niedziela"]

{"sheet":"hqvkamil","index":37,"n_rows":22,"n_cols":8,"rows_kept":22,"cut":false,"hidden":false,"merged":[]}
["Data biegu","Przebiegnięte km","Czas biegu","Średnia prędkość","Miesiąc","Dni tygodnia","Łącznie przebiegniętych kilometrów","z 6259,6 km"]
["28-02-2013",3.26,"21m:46s","6:40 min/km","Luty","Poniedziałek",{"$f":"SUM(B2:B30)","v":169.04000000000002}]
["2-03-2013",7.02,"48m:29s","6:55 min/km","Marzec","Wtorek"]
["4-03-2013",2.77,"17m:45s","6:25 min/km","Marzec","Środa"]
["9-03-2013",7.25,"50m:50s","7:00 min/km","Marzec","Czwartek"]
["10-03-2013",8.39,"59m:30s","7:05 min/km","Marzec","Piątek"]
["12-03-2013",7.53,"49m:30s","6:34 min/km","Marzec","Sobota"]
["14-03-2013",3.8,"26m:02s","6:51 min/km","Marzec","Niedziela"]
["16-03-2013",11.01,"1g:21m:05s","7:22 min/km","Marzec"]
["18-03-2013",8.07,"57m:45s","7:09 min/km","Marzec"]
["19-03-2013",10.4,"1g:12m:01s","6:55 min/km","Marzec"]
["21-03-2013",6.16,"41m:30s","6:44 min/km","Marzec"]
["22-03-2013",11.26,"1g:24m:04s","7:28 min/km","Marzec"]
["23-03-2013",5.54,"37m:26s","6:46 min/km","Marzec"]
["24-03-2013",7.04,"48m:07s","6:50 min/km","Marzec"]
["26-03-2013",8.25,"56m:15s","6:49 min/km","Marzec"]
["29-03-2013",10.130000000000001,"1g:10m:07s","6:55 min/km","Marzec"]
["30-03-2013",10.88,"1g:16m:05s","7:00 min/km","Marzec"]
["31-03-2013",11.11,"1g:18m:01s","7:01 min/km","Marzec"]
["2-04-2013",10.039999999999999,"1g:07m:02s","6:40 min/km","Kwiecień"]
["3-04-2013",8.0500000000000007,"54m:56s","6:50 min/km","Kwiecień"]
["5-04-2013",11.08,"1g:16m:06s","6:52 min/km","Kwiecień"]

{"sheet":"iotochodzi","index":38,"n_rows":8,"n_cols":8,"rows_kept":8,"cut":false,"hidden":false,"merged":[]}
["Data biegu","Przebiegnięte km","Czas biegu","Średnia prędkość","Miesiąc","Dni tygodnia","Łącznie przebiegniętych kilometrów","z 6259,6 km"]
["3-03-2013",8.9,null,null,"Marzec","Poniedziałek",{"$f":"SUM(B2:B27)","v":26.509999999999998}]
["4-03-2013",7.6,null,null,"Marzec","Wtorek"]
["8-03-2013",10.01,null,null,"Marzec","Środa"]
[null,null,null,null,null,"Czwartek"]
[null,null,null,null,null,"Piątek"]
[null,null,null,null,null,"Sobota"]
[null,null,null,null,null,"Niedziela"]

{"sheet":"JangoFett","index":39,"n_rows":8,"n_cols":8,"rows_kept":8,"cut":false,"hidden":false,"merged":[]}
["Data biegu","Przebiegnięte km","Czas biegu","Średnia prędkość","Miesiąc","Dni tygodnia","Łącznie przebiegniętych kilometrów","z 6259,6 km"]
["19-03-2013",3.7,null,null,"Marzec","Poniedziałek",{"$f":"SUM(B2:B19)","v":18.399999999999999}]
["20-03-2013",3.65,null,null,"Marzec","Wtorek"]
["21-03-2013",3.55,null,null,"Marzec","Środa"]
["25-03-2013",4.2,null,null,"Marzec","Czwartek"]
["26-03-2013",3.3,null,null,"Marzec","Piątek"]
[null,null,null,null,null,"Sobota"]
[null,null,null,null,null,"Niedziela"]

{"sheet":"Janodemon","index":40,"n_rows":8,"n_cols":8,"rows_kept":8,"cut":false,"hidden":false,"merged":[]}
["Data biegu","Przebiegnięte km","Czas biegu","Średnia prędkość","Miesiąc","Dni tygodnia","Łącznie przebiegniętych kilometrów","z 6259,6 km"]
["26-02-2013",5,"37m:18s",null,"Luty","Poniedziałek",{"$f":"SUM(B2:B25)","v":10}]
["27-02-2013",5,"38m:51s",null,"Luty","Wtorek"]
[null,null,null,null,null,"Środa"]
[null,null,null,null,null,"Czwartek"]
[null,null,null,null,null,"Piątek"]
[null,null,null,null,null,"Sobota"]
[null,null,null,null,null,"Niedziela"]

{"sheet":"jaras2","index":41,"n_rows":8,"n_cols":8,"rows_kept":8,"cut":false,"hidden":false,"merged":[]}
["Data biegu","Przebiegnięte km","Czas biegu","Średnia prędkość","Miesiąc","Dni tygodnia","Łącznie przebiegniętych kilometrów","z 6259,6 km"]
["2-03-2013",3.63,null,null,"Marzec","Poniedziałek",{"$f":"SUM(B2:B24)","v":3.63}]
[null,null,null,null,null,"Wtorek"]
[null,null,null,null,null,"Środa"]
[null,null,null,null,null,"Czwartek"]
[null,null,null,null,null,"Piątek"]
[null,null,null,null,null,"Sobota"]
[null,null,null,null,null,"Niedziela"]

{"sheet":"jestemrowerem","index":42,"n_rows":8,"n_cols":8,"rows_kept":8,"cut":false,"hidden":false,"merged":[]}
["Data biegu","Przebiegnięte km","Czas biegu","Średnia prędkość","Miesiąc","Dni tygodnia","Łącznie przebiegniętych kilometrów","z 6259,6 km"]
["25-03-2013",6.01,null,null,"Marzec","Poniedziałek",{"$f":"SUM(B2:B20)","v":6.01}]
[null,null,null,null,null,"Wtorek"]
[null,null,null,null,null,"Środa"]
[null,null,null,null,null,"Czwartek"]
[null,null,null,null,null,"Piątek"]
[null,null,null,null,null,"Sobota"]
[null,null,null,null,null,"Niedziela"]

{"sheet":"JokerLine","index":43,"n_rows":29,"n_cols":8,"rows_kept":29,"cut":false,"hidden":false,"merged":[]}
["Data biegu","Przebiegnięte km","Czas biegu","Średnia prędkość","Miesiąc","Dni tygodnia","Łącznie przebiegniętych kilometrów","z 6259,6 km"]
["26-02-2013",6.08,"34m:00s","5:36 min/km","Luty","Poniedziałek",{"$f":"SUM(B2:B33)","v":297.85000000000002}]
["28-02-2013",8.19,"45m:11s","5:31 min/km","Luty","Wtorek"]
["1-03-2013",11.9,"1g:14m:00s","6:13 min/km","Marzec","Środa"]
["2-03-2013",12.46,"1g:30m:06s","7:14 min/km","Marzec","Czwartek"]
["3-03-2013",14.23,"1g:30m:33s","6:22 min/km","Marzec","Piątek"]
["4-03-2013",11.7,"1g:07m:52s","5:48 min/km","Marzec","Sobota"]
["5-03-2013",14.37,"1g:48m:32s","7:33 min/km","Marzec","Niedziela"]
["6-03-2013",11.01,"1g:02m:55s","5:43 min/km","Marzec"]
["6-03-2013",4.3600000000000003,"51m:18s","11:46 min/km","Marzec"]
["9-03-2013",5,"25m:44s","5:09 min/km","Marzec"]
["12-03-2013",9.15,"1g:06m:59s","7:19 min/km","Marzec"]
["13-03-2013",10.87,"1g:20m:38s","7:25 min/km","Marzec"]
["14-03-2013",5.58,"38m:13s","6:51 min/km","Marzec"]
["16-03-2013",10,"1g:00m:00s","6:00 min/km","Marzec"]
["17-03-2013",10,"1g:02m:00s","6:12 min/km","Marzec"]
["20-03-2013",11.32,"1g:09m:54s","6:10 min/km","Marzec"]
["20-03-2013",3.39,"30m:15s","8:56 min/km","Marzec"]
["21-03-2013",11,"1g:06m:12s","6:00 min/km","Marzec"]
["23-03-2013",20.21,"2g:01m:14s","6:00 min/km","Marzec"]
["24-03-2013",11.3,"1g:07m:00s","5:56 min/km","Marzec"]
["25-03-2013",11.06,"1g:03m:36s","5:45 min/km","Marzec"]
["26-03-2013",10.58,"1g:00m:48s","5:45 min/km","Marzec"]
["27-03-2013",7,null,null,"Marzec"]
["28-03-2013",12.32,"1g:15m:00s","6:05 min/k","Marzec"]
["29-03-2013",9.6999999999999993,null,null,"Marzec"]
["30-03-2013",21.83,"2g:10m:58s","6:00 min/km","Marzec"]
["1-04-2013",11.6,"1g:28m:22s","7:37 min/km","Kwiecień"]
["2-04-2013",11.64,"1g:11m:42s","6:10 min/km","Kwiecień"]

{"sheet":"Jumper","index":44,"n_rows":8,"n_cols":8,"rows_kept":8,"cut":false,"hidden":false,"merged":[]}
["Data biegu","Przebiegnięte km","Czas biegu","Średnia prędkość","Miesiąc","Dni tygodnia","Łącznie przebiegniętych kilometrów","z 6259,6 km"]
["7-03-2013",5.6,null,null,"Marzec","Poniedziałek",{"$f":"SUM(B2:B16)","v":5.6}]
[null,null,null,null,null,"Wtorek"]
[null,null,null,null,null,"Środa"]
[null,null,null,null,null,"Czwartek"]
[null,null,null,null,null,"Piątek"]
[null,null,null,null,null,"Sobota"]
[null,null,null,null,null,"Niedziela"]

{"sheet":"_K4milk","index":45,"n_rows":13,"n_cols":8,"rows_kept":13,"cut":false,"hidden":false,"merged":[]}
["Data biegu","Przebiegnięte km","Czas biegu","Średnia prędkość","Miesiąc","Dni tygodnia","Łącznie przebiegniętych kilometrów","z 6259,6 km"]
["4-03-2013",2.9,null,null,"Marzec","Poniedziałek",{"$f":"SUM(B2:B24)","v":71.41}]
["5-03-2013",3.13,null,null,"Marzec","Wtorek"]
["8-03-2013",3.11,"19m:35s","6:18 min/km","Marzec","Środa"]
["10-03-2013",4.51,"29m:18s","6:29 min/km","Marzec","Czwartek"]
["13-03-2013",5.2,"33m:56s","6:32 min/km","Marzec","Piątek"]
["15-03-2013",6.6,"43m:41s","6:37 min/km","Marzec","Sobota"]
["17-03-2013",7.72,"49m:46s","6:26 min/km","Marzec","Niedziela"]
["20-03-2013",8.68,"55m:50s","6:25 min/km","Marzec"]
["22-03-2013",10,"1g:04m:51s","6:29 min/km","Marzec"]
["25-03-2013",4.5199999999999996,"25m:30s","5:38 min/km","Marzec"]
["27-03-2013",10.039999999999999,"1g:03m:22s","6:18 min/km","Marzec"]
["5-04-2013",5,"30m:14s","6:02 min/km","Kwiecień"]

{"sheet":"kamil89qwerty","index":46,"n_rows":22,"n_cols":8,"rows_kept":22,"cut":false,"hidden":false,"merged":[]}
["Data biegu","Przebiegnięte km","Czas biegu","Średnia prędkość","Miesiąc","Dni tygodnia","Łącznie przebiegniętych kilometrów","z 6259,6 km"]
["8-03-2013",7.5,null,null,"Marzec","Poniedziałek",{"$f":"SUM(B2:B33)","v":170.00000000000003}]
["9-03-2013",7.5,null,null,"Marzec","Wtorek"]
["9-03-2013",6,null,null,"Marzec","Środa"]
["10-03-2013",7.5,null,null,"Marzec","Czwartek"]
["10-03-2013",6,null,null,"Marzec","Piątek"]
["12-03-2013",7.5,null,null,"Marzec","Sobota"]
["14-03-2013",7.5,null,null,"Marzec","Niedziela"]
["17-03-2013",7.5,null,null,"Marzec"]
["18-03-2013",8.6999999999999993,null,null,"Marzec"]
["20-03-2013",9.8000000000000007,null,null,"Marzec"]
["22-03-2013",7.5,null,null,"Marzec"]
["23-03-2013",10.199999999999999,null,null,"Marzec"]
["24-03-2013",7.5,null,null,"Marzec"]
["25-03-2013",7.5,null,null,"Marzec"]
["27-03-2013",10,null,null,"Marzec"]
["28-03-2013",7.7,null,null,"Marzec"]
["31-03-2013",4.3,null,null,"Marzec"]
["2-04-2013",15,null,null,"Kwiecień"]
["3-04-2013",7.8,null,null,"Kwiecień"]
["5-04-2013",8,null,null,"Kwiecień"]
["6-04-2013",9,null,null,"Kwiecień"]

{"sheet":"karvon","index":47,"n_rows":8,"n_cols":8,"rows_kept":8,"cut":false,"hidden":false,"merged":[]}
["Data biegu","Przebiegnięte km","Czas biegu","Średnia prędkość","Miesiąc","Dni tygodnia","Łącznie przebiegniętych kilometrów","z 6259,6 km"]
["1-03-2013",5.04,null,null,"Marzec","Poniedziałek",{"$f":"SUM(B2:B19)","v":32.11}]
["2-03-2013",5.5,null,null,"Marzec","Wtorek"]
["7-03-2013",10.1,null,null,"Marzec","Środa"]
["8-03-2013",5.01,null,null,"Marzec","Czwartek"]
["12-03-2013",6.46,null,null,"Marzec","Piątek"]
[null,null,null,null,null,"Sobota"]
[null,null,null,null,null,"Niedziela"]

{"sheet":"Konalio","index":48,"n_rows":8,"n_cols":8,"rows_kept":8,"cut":false,"hidden":false,"merged":[]}
["Data biegu","Przebiegnięte km","Czas biegu","Średnia prędkość","Miesiąc","Dni tygodnia","Łącznie przebiegniętych kilometrów","z 6259,6 km"]
["4-03-2013",6,null,null,"Marzec","Poniedziałek",{"$f":"SUM(B2:B24)","v":6}]
[null,null,null,null,null,"Wtorek"]
[null,null,null,null,null,"Środa"]
[null,null,null,null,null,"Czwartek"]
[null,null,null,null,null,"Piątek"]
[null,null,null,null,null,"Sobota"]
[null,null,null,null,null,"Niedziela"]

{"sheet":"kontra","index":49,"n_rows":12,"n_cols":8,"rows_kept":12,"cut":false,"hidden":false,"merged":[]}
["Data biegu","Przebiegnięte km","Czas biegu","Średnia prędkość","Miesiąc","Dni tygodnia","Łącznie przebiegniętych kilometrów","z 6259,6 km"]
["27-02-2013",5.54,null,null,"Luty","Poniedziałek",{"$f":"SUM(B2:B27)","v":76.94}]
["2-03-2013",10.130000000000001,null,null,"Marzec","Wtorek"]
["6-03-2013",5.51,null,null,"Marzec","Środa"]
["8-03-2013",6.01,null,null,"Marzec","Czwartek"]
["10-03-2013",3.85,null,null,"Marzec","Piątek"]
["11-03-2013",12.5,null,null,"Marzec","Sobota"]
["18-03-2013",5.51,null,null,"Marzec","Niedziela"]
["20-03-2013",7.73,null,null,"Marzec"]
["22-03-2013",6.01,null,null,"Marzec"]
["25-03-2013",7.05,null,null,"Marzec"]
["4-04-2013",7.1,null,null,"Kwiecień"]

{"sheet":"korpiel","index":50,"n_rows":8,"n_cols":8,"rows_kept":8,"cut":false,"hidden":false,"merged":[]}
["Data biegu","Przebiegnięte km","Czas biegu","Średnia prędkość","Miesiąc","Dni tygodnia","Łącznie przebiegniętych kilometrów","z 6259,6 km"]
["28-02-2013",5.9,null,null,"Luty","Poniedziałek",{"$f":"SUM(B2:B24)","v":5.9}]
[null,null,null,null,null,"Wtorek"]
[null,null,null,null,null,"Środa"]
[null,null,null,null,null,"Czwartek"]
[null,null,null,null,null,"Piątek"]
[null,null,null,null,null,"Sobota"]
[null,null,null,null,null,"Niedziela"]

{"sheet":"korzenny","index":51,"n_rows":8,"n_cols":8,"rows_kept":8,"cut":false,"hidden":false,"merged":[]}
["Data biegu","Przebiegnięte km","Czas biegu","Średnia prędkość","Miesiąc","Dni tygodnia","Łącznie przebiegniętych kilometrów","z 6259,6 km"]
["6-03-2013",4.5,null,null,"Marzec","Poniedziałek",{"$f":"SUM(B2:B27)","v":4.5}]
[null,null,null,null,null,"Wtorek"]
[null,null,null,null,null,"Środa"]
[null,null,null,null,null,"Czwartek"]
[null,null,null,null,null,"Piątek"]
[null,null,null,null,null,"Sobota"]
[null,null,null,null,null,"Niedziela"]

{"sheet":"Kozzi","index":52,"n_rows":8,"n_cols":8,"rows_kept":8,"cut":false,"hidden":false,"merged":[]}
["Data biegu","Przebiegnięte km","Czas biegu","Średnia prędkość","Miesiąc","Dni tygodnia","Łącznie przebiegniętych kilometrów","z 6259,6 km"]
["6-03-2013",3.49,"15m:34s","4:28 min/km","Marzec","Poniedziałek",{"$f":"SUM(B2:B26)","v":3.49}]
[null,null,null,null,null,"Wtorek"]
[null,null,null,null,null,"Środa"]
[null,null,null,null,null,"Czwartek"]
[null,null,null,null,null,"Piątek"]
[null,null,null,null,null,"Sobota"]
[null,null,null,null,null,"Niedziela"]

{"sheet":"Kresowiak","index":53,"n_rows":8,"n_cols":8,"rows_kept":8,"cut":false,"hidden":false,"merged":[]}
["Data biegu","Przebiegnięte km","Czas biegu","Średnia prędkość","Miesiąc","Dni tygodnia","Łącznie przebiegniętych kilometrów","z 6259,6 km"]
["5-04-2013",20.28,null,null,"Kwiecień","Poniedziałek",{"$f":"SUM(B2:B21)","v":20.28}]
[null,null,null,null,null,"Wtorek"]
[null,null,null,null,null,"Środa"]
[null,null,null,null,null,"Czwartek"]
[null,null,null,null,null,"Piątek"]
[null,null,null,null,null,"Sobota"]
[null,null,null,null,null,"Niedziela"]

{"sheet":"krzysiulek","index":54,"n_rows":8,"n_cols":8,"rows_kept":8,"cut":false,"hidden":false,"merged":[]}
["Data biegu","Przebiegnięte km","Czas biegu","Średnia prędkość","Miesiąc","Dni tygodnia","Łącznie przebiegniętych kilometrów","z 6259,6 km"]
["8-03-2013",7.1,null,null,"Marzec","Poniedziałek",{"$f":"SUM(B2:B18)","v":16.299999999999997}]
["6-04-2013",9.1999999999999993,null,null,"Kwiecień","Wtorek"]
[null,null,null,null,null,"Środa"]
[null,null,null,null,null,"Czwartek"]
[null,null,null,null,null,"Piątek"]
[null,null,null,null,null,"Sobota"]
[null,null,null,null,null,"Niedziela"]

{"sheet":"ktoosiu","index":55,"n_rows":8,"n_cols":8,"rows_kept":8,"cut":false,"hidden":false,"merged":[]}
["Data biegu","Przebiegnięte km","Czas biegu","Średnia prędkość","Miesiąc","Dni tygodnia","Łącznie przebiegniętych kilometrów","z 6259,6 km"]
["6-03-2013",1.2,null,null,"Marzec","Poniedziałek",{"$f":"SUM(B2:B17)","v":1.2}]
[null,null,null,null,null,"Wtorek"]
[null,null,null,null,null,"Środa"]
[null,null,null,null,null,"Czwartek"]
[null,null,null,null,null,"Piątek"]
[null,null,null,null,null,"Sobota"]
[null,null,null,null,null,"Niedziela"]

{"sheet":"Kuba_prezes","index":56,"n_rows":9,"n_cols":8,"rows_kept":9,"cut":false,"hidden":false,"merged":[]}
["Data biegu","Przebiegnięte km","Czas biegu","Średnia prędkość","Miesiąc","Dni tygodnia","Łącznie przebiegniętych kilometrów","z 6259,6 km"]
["28-02-2013",12.5,null,null,"Luty","Poniedziałek",{"$f":"SUM(B2:B22)","v":75.260000000000005}]
["2-03-2013",10.53,null,null,"Marzec","Wtorek"]
["3-03-2013",22,null,null,"Marzec","Środa"]
["18-03-2013",5.5,null,null,"Marzec","Czwartek"]
["20-03-2013",8.1999999999999993,null,null,"Marzec","Piątek"]
["22-03-2013",5.53,null,null,"Marzec","Sobota"]
["2-04-2013",5.5,null,null,"Kwiecień","Niedziela"]
["4-04-2013",5.5,null,null,"Kwiecień"]

{"sheet":"Loynis","index":57,"n_rows":8,"n_cols":8,"rows_kept":8,"cut":false,"hidden":false,"merged":[]}
["Data biegu","Przebiegnięte km","Czas biegu","Średnia prędkość","Miesiąc","Dni tygodnia","Łącznie przebiegniętych kilometrów","z 6259,6 km"]
["1-03-2013",10.88,null,null,"Marzec","Poniedziałek",{"$f":"SUM(B2:B22)","v":74.09}]
["3-03-2013",15.3,null,null,"Marzec","Wtorek"]
["4-03-2013",10.02,null,null,"Marzec","Środa"]
["5-03-2013",12.71,null,null,"Marzec","Czwartek"]
["7-03-2013",10.4,null,null,"Marzec","Piątek"]
["9-03-2013",10.53,null,null,"Marzec","Sobota"]
["12-03-2013",4.25,null,null,"Marzec","Niedziela"]

{"sheet":"Lsrd","index":58,"n_rows":22,"n_cols":8,"rows_kept":22,"cut":false,"hidden":false,"merged":[]}
["Data biegu","Przebiegnięte km","Czas biegu","Średnia prędkość","Miesiąc","Dni tygodnia","Łącznie przebiegniętych kilometrów","z 6259,6 km"]
["27-02-2013",9.57,"46m:21s","4:51 min/km","Luty","Poniedziałek",{"$f":"SUM(B2:B32)","v":154.34}]
["28-02-2013",9.02,"41m:56s","4:39 min/km","Luty","Wtorek"]
["3-03-2013",8.4700000000000006,null,null,"Marzec","Środa"]
["6-03-2013",5.08,"22m:10s","4:22 min/km","Marzec","Czwartek"]
["7-03-2013",7.26,null,null,"Marzec","Piątek"]
["9-03-2013",11.61,"57m:52s","4:59 min/km","Marzec","Sobota"]
["12-03-2013",10.32,"51m:31s","5:00 min/km","Marzec","Niedziela"]
["14-03-2013",10.15,"48m:59s","4:50 min/km","Marzec"]
["16-03-2013",4.99,"21m:54s","4:23 min/km","Marzec"]
["17-03-2013",5.0199999999999996,"26m:06s","5:12 min/km","Marzec"]
["17-03-2013",6.96,"36m:22s","5:14 min/km","Marzec"]
["21-03-2013",7.64,"34m:03s","4:27 min/km","Marzec"]
["23-03-2013",14.77,"1g:12m:03s","4:53 min/km","Marzec"]
["26-03-2013",5.03,"21m:28s","4:16 min/km","Marzec"]
["28-03-2013",10.119999999999999,"47m:13s","4:40 min/km","Marzec"]
["31-03-2013",2.54,"13m:44s","5:24 min/km","Marzec"]
["31-03-2013",6.62,"36m:29s","5:30 min/km","Marzec"]
["2-04-2013",13.87,"1g:06m:49s","4:49 min/km","Kwiecień"]
["4-04-2013",2.77,"11m:43s","4:14 min/km","Kwiecień"]
["4-04-2013",1.04,"3m:40s","3:31 min/km","Kwiecień"]
["4-04-2013",1.49,"7m:58s","5:21 min/km","Kwiecień"]

{"sheet":"lukaszwasyl","index":59,"n_rows":8,"n_cols":8,"rows_kept":8,"cut":false,"hidden":false,"merged":[]}
["Data biegu","Przebiegnięte km","Czas biegu","Średnia prędkość","Miesiąc","Dni tygodnia","Łącznie przebiegniętych kilometrów","z 6259,6 km"]
["7-03-2013",11.54,null,null,"Marzec","Poniedziałek",{"$f":"SUM(B2:B24)","v":82.710000000000008}]
["9-03-2013",15.75,null,null,"Marzec","Wtorek"]
["11-03-2013",13.52,null,null,"Marzec","Środa"]
["12-03-2013",10.38,null,null,"Marzec","Czwartek"]
["14-03-2013",13.4,null,null,"Marzec","Piątek"]
["2-04-2013",18.12,"1g:37m:54s","5:24 min/km","Kwiecień","Sobota"]
[null,null,null,null,null,"Niedziela"]

{"sheet":"maciao","index":60,"n_rows":18,"n_cols":8,"rows_kept":18,"cut":false,"hidden":false,"merged":[]}
["Data biegu","Przebiegnięte km","Czas biegu","Średnia prędkość","Miesiąc","Dni tygodnia","Łącznie przebiegniętych kilometrów","z 6259,6 km"]
["3-03-2013",2,null,null,"Marzec","Poniedziałek",{"$f":"SUM(B2:B24)","v":57.6}]
["5-03-2013",2.1,null,null,"Marzec","Wtorek"]
["8-03-2013",2,null,null,"Marzec","Środa"]
["10-03-2013",2.5,null,null,"Marzec","Czwartek"]
["11-03-2013",3,null,null,"Marzec","Piątek"]
["13-03-2013",3,null,null,"Marzec","Sobota"]
["14-03-2013",3,null,null,"Marzec","Niedziela"]
["16-03-2013",3,null,null,"Marzec"]
["18-03-2013",5,null,null,"Marzec"]
["19-03-2013",5,null,null,"Marzec"]
["20-03-2013",3,null,null,"Marzec"]
["24-03-2013",3,null,null,"Marzec"]
["26-03-2013",3,null,null,"Marzec"]
["28-03-2013",3,null,null,"Marzec"]
["29-03-2013",5,null,null,"Marzec"]
["30-03-2013",5,null,null,"Marzec"]
["2-04-2013",5,null,null,"Kwiecień"]

{"sheet":"madev","index":61,"n_rows":8,"n_cols":8,"rows_kept":8,"cut":false,"hidden":false,"merged":[]}
["Data biegu","Przebiegnięte km","Czas biegu","Średnia prędkość","Miesiąc","Dni tygodnia","Łącznie przebiegniętych kilometrów","z 6259,6 km"]
["27-02-2013",3.09,null,null,"Luty","Poniedziałek",{"$f":"SUM(B2:B22)","v":12.24}]
["6-03-2013",2.84,null,null,"Marzec","Wtorek"]
["12-03-2013",3.22,null,null,"Marzec","Środa"]
["15-03-2013",3.09,null,null,"Marzec","Czwartek"]
[null,null,null,null,null,"Piątek"]
[null,null,null,null,null,"Sobota"]
[null,null,null,null,null,"Niedziela"]

{"sheet":"Madius","index":62,"n_rows":8,"n_cols":8,"rows_kept":8,"cut":false,"hidden":false,"merged":[]}
["Data biegu","Przebiegnięte km","Czas biegu","Średnia prędkość","Miesiąc","Dni tygodnia","Łącznie przebiegniętych kilometrów","z 6259,6 km"]
["5-03-2013",5.0999999999999996,null,null,"Marzec","Poniedziałek",{"$f":"SUM(B2:B27)","v":10.1}]
["6-03-2013",5,null,null,"Marzec","Wtorek"]
[null,null,null,null,null,"Środa"]
[null,null,null,null,null,"Czwartek"]
[null,null,null,null,null,"Piątek"]
[null,null,null,null,null,"Sobota"]
[null,null,null,null,null,"Niedziela"]

{"sheet":"mani3kxc","index":63,"n_rows":20,"n_cols":8,"rows_kept":20,"cut":false,"hidden":false,"merged":[]}
["Data biegu","Przebiegnięte km","Czas biegu","Średnia prędkość","Miesiąc","Dni tygodnia","Łącznie przebiegniętych kilometrów","z 6259,6 km"]
["27-02-2013",5.15,"25m:40s","4:59 min/km","Luty","Poniedziałek",{"$f":"SUM(B2:B25)","v":201.13}]
["28-02-2013",21.34,"2g:01m:54s","5:43 min/km","Luty","Wtorek"]
["2-03-2013",10.01,"55m:20s","5:32 min/km","Marzec","Środa"]
["3-03-2013",10.34,"55m:41s","7:22 min/km","Marzec","Czwartek"]
["4-03-2013",5.04,"27m:17s","5:25 min/km","Marzec","Piątek"]
["6-03-2013",25.01,"2g:29m:39s","5:59 min/km","Marzec","Sobota"]
["13-03-2013",5.04,"31m:30s","6:15 min/km","Marzec","Niedziela"]
["13-03-2013",5.51,"30m:42s","5:34 min/km","Marzec"]
["18-03-2013",5.51,"27m:42s","5:02 min/km","Marzec"]
["19-03-2013",10.02,"54m:59s","5:29 min/km","Marzec"]
["20-03-2013",10.02,"53m:38s","5:21 min/km","Marzec"]
["27-03-2013",10.039999999999999,"56m:51s","5:40 min/km","Marzec"]
["28-03-2013",11.26,"57m:23s","5:06 min/km","Marzec"]
["30-03-2013",10.050000000000001,"53m:45s","5:21 min/km","Marzec"]
["31-03-2013",10.029999999999999,"55m:01s","5:29 min/km","Marzec"]
["2-04-2013",11.46,"1g:07m:31s","5:53 min/km","Kwiecień"]
["3-04-2013",10.19,"58m:06s","5:42 min/km","Kwiecień"]
["4-04-2013",11.1,"56m:38s","5:06 min/km","Kwiecień"]
["5-04-2013",14.01,"1g:19m:56s","5:42 min/km","Kwiecień"]

{"sheet":"manieq88","index":64,"n_rows":8,"n_cols":8,"rows_kept":8,"cut":false,"hidden":false,"merged":[]}
["Data biegu","Przebiegnięte km","Czas biegu","Średnia prędkość","Miesiąc","Dni tygodnia","Łącznie przebiegniętych kilometrów","z 6259,6 km"]
["5-03-2013",6.39,null,null,"Marzec","Poniedziałek",{"$f":"SUM(B2:B24)","v":25.490000000000002}]
["7-03-2013",5.08,null,null,"Marzec","Wtorek"]
["10-03-2013",5.23,"36m:12s","6:55 min/km","Marzec","Środa"]
["11-03-2013",5.08,"31m:39s","6:14 min/km","Marzec","Czwartek"]
["13-03-2013",3.71,"20m:57s","5:39 min/km","Marzec","Piątek"]
[null,null,null,null,null,"Sobota"]
[null,null,null,null,null,"Niedziela"]

{"sheet":"marekq","index":65,"n_rows":10,"n_cols":8,"rows_kept":10,"cut":false,"hidden":false,"merged":[]}
["Data biegu","Przebiegnięte km","Czas biegu","Średnia prędkość","Miesiąc","Dni tygodnia","Łącznie przebiegniętych kilometrów","z 6259,6 km"]
["19-03-2013",3.8,null,null,"Marzec","Poniedziałek",{"$f":"SUM(B2:B22)","v":35.1}]
["21-03-2013",4,null,null,"Marzec","Wtorek"]
["23-03-2013",3.9,null,null,"Marzec","Środa"]
["24-03-2013",3.8,"28m:03s","7:22 min/km","Marzec","Czwartek"]
["26-03-2013",3.75,null,null,"Marzec","Piątek"]
["28-03-2013",1.1399999999999999,"7m:17s","6:23 min/k","Marzec","Sobota"]
["28-03-2013",2.96,"17m:07s","5:47 min/km","Marzec","Niedziela"]
["2-04-2013",7.7,null,null,"Kwiecień"]
["4-04-2013",4.05,null,null,"Kwiecień"]

{"sheet":"margottst","index":66,"n_rows":8,"n_cols":8,"rows_kept":8,"cut":false,"hidden":false,"merged":[]}
["Data biegu","Przebiegnięte km","Czas biegu","Średnia prędkość","Miesiąc","Dni tygodnia","Łącznie przebiegniętych kilometrów","z 6259,6 km"]
["3-03-2013",9.3000000000000007,null,null,"Marzec","Poniedziałek",{"$f":"SUM(B2:B26)","v":9.3000000000000007}]
[null,null,null,null,null,"Wtorek"]
[null,null,null,null,null,"Środa"]
[null,null,null,null,null,"Czwartek"]
[null,null,null,null,null,"Piątek"]
[null,null,null,null,null,"Sobota"]
[null,null,null,null,null,"Niedziela"]

{"sheet":"Mario_lgw","index":67,"n_rows":8,"n_cols":8,"rows_kept":8,"cut":false,"hidden":false,"merged":[]}
["Data biegu","Przebiegnięte km","Czas biegu","Średnia prędkość","Miesiąc","Dni tygodnia","Łącznie przebiegniętych kilometrów","z 6259,6 km"]
["4-04-2013",8.81,null,null,"Kwiecień","Poniedziałek",{"$f":"SUM(B2:B21)","v":8.81}]
[null,null,null,null,null,"Wtorek"]
[null,null,null,null,null,"Środa"]
[null,null,null,null,null,"Czwartek"]
[null,null,null,null,null,"Piątek"]
[null,null,null,null,null,"Sobota"]
[null,null,null,null,null,"Niedziela"]

{"sheet":"Mariusz_Drugi","index":68,"n_rows":8,"n_cols":8,"rows_kept":8,"cut":false,"hidden":false,"merged":[]}
["Data biegu","Przebiegnięte km","Czas biegu","Średnia prędkość","Miesiąc","Dni tygodnia","Łącznie przebiegniętych kilometrów","z 6259,6 km"]
["18-03-2013",3.94,"25m:32s","6:29 min/km","Marzec","Poniedziałek",{"$f":"SUM(B2:B22)","v":3.94}]
[null,null,null,null,null,"Wtorek"]
[null,null,null,null,null,"Środa"]
[null,null,null,null,null,"Czwartek"]
[null,null,null,null,null,"Piątek"]
[null,null,null,null,null,"Sobota"]
[null,null,null,null,null,"Niedziela"]

{"sheet":"Markos90","index":69,"n_rows":8,"n_cols":8,"rows_kept":8,"cut":false,"hidden":false,"merged":[]}
["Data biegu","Przebiegnięte km","Czas biegu","Średnia prędkość","Miesiąc","Dni tygodnia","Łącznie przebiegniętych kilometrów","z 6259,6 km"]
["5-03-2013",3.26,null,null,"Marzec","Poniedziałek",{"$f":"SUM(B2:B25)","v":3.26}]
[null,null,null,null,null,"Wtorek"]
[null,null,null,null,null,"Środa"]
[null,null,null,null,null,"Czwartek"]
[null,null,null,null,null,"Piątek"]
[null,null,null,null,null,"Sobota"]
[null,null,null,null,null,"Niedziela"]

{"sheet":"Marmite","index":70,"n_rows":8,"n_cols":8,"rows_kept":8,"cut":false,"hidden":false,"merged":[]}
["Data biegu","Przebiegnięte km","Czas biegu","Średnia prędkość","Miesiąc","Dni tygodnia","Łącznie przebiegniętych kilometrów","z 6259,6 km"]
["2-03-2013",2,null,null,"Marzec","Poniedziałek",{"$f":"SUM(B2:B23)","v":2}]
[null,null,null,null,null,"Wtorek"]
[null,null,null,null,null,"Środa"]
[null,null,null,null,null,"Czwartek"]
[null,null,null,null,null,"Piątek"]
[null,null,null,null,null,"Sobota"]
[null,null,null,null,null,"Niedziela"]

{"sheet":"maslan63","index":71,"n_rows":10,"n_cols":8,"rows_kept":10,"cut":false,"hidden":false,"merged":[]}
["Data biegu","Przebiegnięte km","Czas biegu","Średnia prędkość","Miesiąc","Dni tygodnia","Łącznie przebiegniętych kilometrów","z 6259,6 km"]
["9-03-2013",2.92,null,null,"Marzec","Poniedziałek",{"$f":"SUM(B2:B20)","v":33.949999999999996}]
["10-03-2013",3.52,null,null,"Marzec","Wtorek"]
["11-03-2013",3.43,null,null,"Marzec","Środa"]
["12-03-2013",4.0199999999999996,null,null,"Marzec","Czwartek"]
["14-03-2013",4.0199999999999996,null,null,"Marzec","Piątek"]
["15-03-2013",4.0199999999999996,null,null,"Marzec","Sobota"]
["18-03-2013",4,null,null,"Marzec","Niedziela"]
["25-03-2013",4,null,null,"Marzec"]
["4-04-2013",4.0199999999999996,null,null,"Kwiecień"]

{"sheet":"Masterczulki","index":72,"n_rows":17,"n_cols":8,"rows_kept":17,"cut":false,"hidden":false,"merged":[]}
["Data biegu","Przebiegnięte km","Czas biegu","Średnia prędkość","Miesiąc","Dni tygodnia","Łącznie przebiegniętych kilometrów","z 6259,6 km"]
["27-02-2013",3,null,null,"Luty","Poniedziałek",{"$f":"SUM(B2:B25)","v":82.36999999999999}]
["1-03-2013",5.01,"33m:42s","6:43 min/km","Marzec","Wtorek"]
["3-03-2013",3,null,null,"Marzec","Środa"]
["5-03-2013",3.23,"20m:02s","6:11 min/km","Marzec","Czwartek"]
["7-03-2013",3,null,null,"Marzec","Piątek"]
["8-03-2013",5,null,null,"Marzec","Sobota"]
["12-03-2013",6.67,"43m:00s","6:27 min/km","Marzec","Niedziela"]
["14-03-2013",6.13,"43m:57s","7:10 min/km","Marzec"]
["16-03-2013",7.66,"50m:49s","6:38 min/km","Marzec"]
["18-03-2013",5.41,"36m:24s","6:44 min/km","Marzec"]
["19-03-2013",7.88,"54m:13s","6:53 min/km","Marzec"]
["21-03-2013",7.9,"50m:25s","6:23 min/km","Marzec"]
["23-03-2013",5.68,null,null,"Marzec"]
["1-04-2013",3.09,null,null,"Kwiecień"]
["3-04-2013",4.58,"30m:00s",null,"Kwiecień"]
["4-04-2013",5.13,"32m:19s","6:18 min/km","Kwiecień"]

{"sheet":"mBartek89","index":73,"n_rows":8,"n_cols":8,"rows_kept":8,"cut":false,"hidden":false,"merged":[]}
["Data biegu","Przebiegnięte km","Czas biegu","Średnia prędkość","Miesiąc","Dni tygodnia","Łącznie przebiegniętych kilometrów","z 6259,6 km"]
["11-03-2013",4,null,null,"Marzec","Poniedziałek",{"$f":"SUM(B2:B25)","v":8}]
["12-03-2013",4,null,null,"Marzec","Wtorek"]
[null,null,null,null,null,"Środa"]
[null,null,null,null,null,"Czwartek"]
[null,null,null,null,null,"Piątek"]
[null,null,null,null,null,"Sobota"]
[null,null,null,null,null,"Niedziela"]

{"sheet":"mechaniczny_kurak","index":74,"n_rows":8,"n_cols":8,"rows_kept":8,"cut":false,"hidden":false,"merged":[]}
["Data biegu","Przebiegnięte km","Czas biegu","Średnia prędkość","Miesiąc","Dni tygodnia","Łącznie przebiegniętych kilometrów","z 6259,6 km"]
["10-03-2013",5.3,null,null,"Marzec","Poniedziałek",{"$f":"SUM(B2:B21)","v":5.3}]
[null,null,null,null,null,"Wtorek"]
[null,null,null,null,null,"Środa"]
[null,null,null,null,null,"Czwartek"]
[null,null,null,null,null,"Piątek"]
[null,null,null,null,null,"Sobota"]
[null,null,null,null,null,"Niedziela"]

{"sheet":"Meffx","index":75,"n_rows":13,"n_cols":8,"rows_kept":13,"cut":false,"hidden":false,"merged":[]}
["Data biegu","Przebiegnięte km","Czas biegu","Średnia prędkość","Miesiąc","Dni tygodnia","Łącznie przebiegniętych kilometrów","z 6259,6 km"]
["4-03-2013",10.199999999999999,"1g:04m:23s","6:19 min/km","Marzec","Poniedziałek",{"$f":"SUM(B2:B21)","v":101.41999999999999}]
["5-03-2013",9.6199999999999992,"59m:57s","6:14 min/km","Marzec","Wtorek"]
["7-03-2013",13.2,"1g:18m:11s","5:55 min/km","Marzec","Środa"]
["8-03-2013",3.4,null,null,"Marzec","Czwartek"]
["12-03-2013",9,"30m:00s","6:00 min/km","Marzec","Piątek"]
["14-03-2013",10,null,null,"Marzec","Sobota"]
["15-03-2013",8,null,null,"Marzec","Niedziela"]
["18-03-2013",4,"42m:00s","6:00 min/km","Marzec"]
["19-03-2013",10,"1g:00m:00s","6:00 min/km","Marzec"]
["20-03-2013",5,"32m:00s","6:24 min/km","Marzec"]
["21-03-2013",7,"42m:00s","6:00 min/km","Marzec"]
["28-03-2013",12,null,null,"Marzec"]

{"sheet":"mejsieq","index":76,"n_rows":8,"n_cols":8,"rows_kept":8,"cut":false,"hidden":false,"merged":[]}
["Data biegu","Przebiegnięte km","Czas biegu","Średnia prędkość","Miesiąc","Dni tygodnia","Łącznie przebiegniętych kilometrów","z 6259,6 km"]
["27-02-2013",3.17,"30m:24s","9:35 min/km","Luty","Poniedziałek",{"$f":"SUM(B2:B16)","v":3.17}]
[null,null,null,null,null,"Wtorek"]
[null,null,null,null,null,"Środa"]
[null,null,null,null,null,"Czwartek"]
[null,null,null,null,null,"Piątek"]
[null,null,null,null,null,"Sobota"]
[null,null,null,null,null,"Niedziela"]

{"sheet":"michal__q","index":77,"n_rows":8,"n_cols":8,"rows_kept":8,"cut":false,"hidden":false,"merged":[]}
["Data biegu","Przebiegnięte km","Czas biegu","Średnia prędkość","Miesiąc","Dni tygodnia","Łącznie przebiegniętych kilometrów","z 6259,6 km"]
["5-03-2013",5,null,null,"Marzec","Poniedziałek",{"$f":"SUM(B2:B23)","v":5}]
[null,null,null,null,null,"Wtorek"]
[null,null,null,null,null,"Środa"]
[null,null,null,null,null,"Czwartek"]
[null,null,null,null,null,"Piątek"]
[null,null,null,null,null,"Sobota"]
[null,null,null,null,null,"Niedziela"]

{"sheet":"mizaj","index":78,"n_rows":21,"n_cols":8,"rows_kept":21,"cut":false,"hidden":false,"merged":[]}
["Data biegu","Przebiegnięte km","Czas biegu","Średnia prędkość","Miesiąc","Dni tygodnia","Łącznie przebiegniętych kilometrów","z 6259,6 km"]
["27-02-2013",11.3,null,null,"Luty","Poniedziałek",{"$f":"SUM(B2:B26)","v":251.20999999999998}]
["28-02-2013",10.1,null,null,"Luty","Wtorek"]
["2-03-2013",35.5,"03g:14m:59s","5:34 min/km","Marzec","Środa"]
["4-03-2013",6.12,"29m:56s","4:53 min/km","Marzec","Czwartek"]
["6-03-2013",15.21,"1g:15m:24s","4:57 min/km","Marzec","Piątek"]
["9-03-2013",15.05,"1g:07m:15s","4:28 min/km","Marzec","Sobota"]
["10-03-2013",6.66,"35m:21s","5:19 min/km","Marzec","Niedziela"]
["10-03-2013",8.6,"44m:46s","5:13 min/km","Marzec"]
["11-03-2013",17.100000000000001,"1g:31m:19s","5:21 min/km","Marzec"]
["12-03-2013",15.2,"1g:25m:19s","5:37 min/k","Marzec"]
["14-03-2013",18.100000000000001,"1g:38m:03s","5:25 min/km","Marzec"]
["15-03-2013",7.1,"40m:03s","5:39 min/km","Marzec"]
["16-03-2013",10,"58m:29s","5:51 min/km","Marzec"]
["17-03-2013",20,"1g:39m:11s","4:57 min/km","Marzec"]
["18-03-2013",5,"26m:44s","5:21 min/km","Marzec"]
["21-03-2013",10,"52m:00s","5:12 min/km","Marzec"]
["24-03-2013",21.3,"1g:33m:20s","4:23 min/km","Marzec"]
["26-03-2013",10.27,"1g:00m:01s","5:51 min/km","Marzec"]
["4-04-2013",5,"29m:00s","5:48 min/km","Kwiecień"]
["5-04-2013",3.6,"18m:53s","5:15 min/km","Kwiecień"]

{"sheet":"mocher_kg","index":79,"n_rows":12,"n_cols":8,"rows_kept":12,"cut":false,"hidden":false,"merged":[]}
["Data biegu","Przebiegnięte km","Czas biegu","Średnia prędkość","Miesiąc","Dni tygodnia","Łącznie przebiegniętych kilometrów","z 6259,6 km"]
["27-02-2013",2.11,"12m:37s","5,58 min/km","Luty","Poniedziałek",{"$f":"SUM(B2:B19)","v":43.339999999999996}]
["28-02-2013",2.2999999999999998,"12m:36s","5:28 min/km","Luty","Wtorek"]
["4-03-2013",2,"12m:41s","6:09 min/km","Marzec","Środa"]
["5-03-2013",6.26,"39m:03s","6:14 min/km","Marzec","Czwartek"]
["6-03-2013",4.12,"24m:23s","5:55 min/km","Marzec","Piątek"]
["8-03-2013",4.2,"21m:41s","5:10 min/km","Marzec","Sobota"]
["13-03-2013",2,null,null,"Marzec","Niedziela"]
["14-03-2013",10,"59m:06s","5:48 min/km","Marzec"]
["18-03-2013",4,"23m:21s","5:37 min/km","Marzec"]
["20-03-2013",2.5,"13m:22s","5:21 min/km","Marzec"]
["24-03-2013",3.85,"24m:30s","6:22 min/k","Marzec"]

{"sheet":"moss4d","index":80,"n_rows":8,"n_cols":8,"rows_kept":8,"cut":false,"hidden":false,"merged":[]}
["Data biegu","Przebiegnięte km","Czas biegu","Średnia prędkość","Miesiąc","Dni tygodnia","Łącznie przebiegniętych kilometrów","z 6259,6 km"]
["10-03-2013",4.3,"23m:46s","8:54 min/mi","Marzec","Poniedziałek",{"$f":"SUM(B2:B23)","v":30}]
["17-03-2013",4.7,"26m:41s","9:04 min/mi","Marzec","Wtorek"]
["24-03-2013",10.6,"1g:06m:19s","10:06 min/mi","Marzec","Środa"]
["5-04-2013",10.4,"57m:25s","8:52 min/mi","Kwiecień","Czwartek"]
[null,null,null,null,null,"Piątek"]
[null,null,null,null,null,"Sobota"]
[null,null,null,null,null,"Niedziela"]

{"sheet":"m_pietrzak","index":81,"n_rows":8,"n_cols":8,"rows_kept":8,"cut":false,"hidden":false,"merged":[]}
["Data biegu","Przebiegnięte km","Czas biegu","Średnia prędkość","Miesiąc","Dni tygodnia","Łącznie przebiegniętych kilometrów","z 6259,6 km"]
["31-03-2013",14.29,null,null,"Marzec","Poniedziałek",{"$f":"SUM(B2:B24)","v":14.29}]
[null,null,null,null,null,"Wtorek"]
[null,null,null,null,null,"Środa"]
[null,null,null,null,null,"Czwartek"]
[null,null,null,null,null,"Piątek"]
[null,null,null,null,null,"Sobota"]
[null,null,null,null,null,"Niedziela"]

{"sheet":"NaNiczymSieNieZnam","index":82,"n_rows":8,"n_cols":8,"rows_kept":8,"cut":false,"hidden":false,"merged":[]}
["Data biegu","Przebiegnięte km","Czas biegu","Średnia prędkość","Miesiąc","Dni tygodnia","Łącznie przebiegniętych kilometrów","z 6259,6 km"]
["17-03-2013",8.8000000000000007,null,null,"Marzec","Poniedziałek",{"$f":"SUM(B2:B16)","v":8.8000000000000007}]
[null,null,null,null,null,"Wtorek"]
[null,null,null,null,null,"Środa"]
[null,null,null,null,null,"Czwartek"]
[null,null,null,null,null,"Piątek"]
[null,null,null,null,null,"Sobota"]
[null,null,null,null,null,"Niedziela"]

{"sheet":"necropoleis","index":83,"n_rows":8,"n_cols":8,"rows_kept":8,"cut":false,"hidden":false,"merged":[]}
["Data biegu","Przebiegnięte km","Czas biegu","Średnia prędkość","Miesiąc","Dni tygodnia","Łącznie przebiegniętych kilometrów","z 6259,6 km"]
["27-02-2013",5,null,null,"Luty","Poniedziałek",{"$f":"SUM(B2:B23)","v":43.67}]
["4-03-2013",4.2,null,null,"Marzec","Wtorek"]
["6-03-2013",5.9,null,null,"Marzec","Środa"]
["8-03-2013",7.4,"31m:34s","12:02 min/km","Marzec","Czwartek"]
["12-03-2013",9.76,null,null,"Marzec","Piątek"]
["14-03-2013",11.41,null,null,"Marzec","Sobota"]
[null,null,null,null,null,"Niedziela"]

{"sheet":"Nered","index":84,"n_rows":8,"n_cols":8,"rows_kept":8,"cut":false,"hidden":false,"merged":[]}
["Data biegu","Przebiegnięte km","Czas biegu","Średnia prędkość","Miesiąc","Dni tygodnia","Łącznie przebiegniętych kilometrów","z 6259,6 km"]
["28-02-2013",13.42,"1g:12m:06s","5:22 min/km","Luty","Poniedziałek",{"$f":"SUM(B2:B25)","v":13.42}]
[null,null,null,null,null,"Wtorek"]
[null,null,null,null,null,"Środa"]
[null,null,null,null,null,"Czwartek"]
[null,null,null,null,null,"Piątek"]
[null,null,null,null,null,"Sobota"]
[null,null,null,null,null,"Niedziela"]

{"sheet":"nerqus","index":85,"n_rows":8,"n_cols":8,"rows_kept":8,"cut":false,"hidden":false,"merged":[]}
["Data biegu","Przebiegnięte km","Czas biegu","Średnia prędkość","Miesiąc","Dni tygodnia","Łącznie przebiegniętych kilometrów","z 6259,6 km"]
["5-03-2013",4.9000000000000004,null,null,"Marzec","Poniedziałek",{"$f":"SUM(B2:B27)","v":4.9000000000000004}]
[null,null,null,null,null,"Wtorek"]
[null,null,null,null,null,"Środa"]
[null,null,null,null,null,"Czwartek"]
[null,null,null,null,null,"Piątek"]
[null,null,null,null,null,"Sobota"]
[null,null,null,null,null,"Niedziela"]

{"sheet":"noway","index":86,"n_rows":8,"n_cols":8,"rows_kept":8,"cut":false,"hidden":false,"merged":[]}
["Data biegu","Przebiegnięte km","Czas biegu","Średnia prędkość","Miesiąc","Dni tygodnia","Łącznie przebiegniętych kilometrów","z 6259,6 km"]
["26-02-2013",6,null,null,"Luty","Poniedziałek",{"$f":"SUM(B2:B24)","v":6}]
[null,null,null,null,null,"Wtorek"]
[null,null,null,null,null,"Środa"]
[null,null,null,null,null,"Czwartek"]
[null,null,null,null,null,"Piątek"]
[null,null,null,null,null,"Sobota"]
[null,null,null,null,null,"Niedziela"]

{"sheet":"Ogoor","index":87,"n_rows":38,"n_cols":24,"rows_kept":38,"cut":false,"hidden":false,"merged":[]}
["Data biegu","Przebiegnięte km","Czas biegu","Średnia prędkość","Miesiąc","Dni tygodnia","Łącznie przebiegniętych kilometrów","z 6259,6 km"]
["3-03-2013",9.3000000000000007,null,null,"Marzec","Poniedziałek",{"$f":"SUM(B2:B34)","v":37.379999999999995}]
["5-03-2013",9.48,"55m:37s","05:52 min/km","Marzec","Wtorek"]
["9-03-2013",10,null,null,"Marzec","Środa"]
["14-03-2013",4.3,null,null,"Marzec","Czwartek"]
["15-03-2013",4.3,null,null,"Marzec","Piątek"]
[null,null,null,null,null,"Sobota"]
[null,null,null,null,null,"Niedziela"]
[]
[]
[]
[]
[]
[]
[]
[]
[]
[]
[]
[]
[]
[]
[]
[]
[]
[]
[]
[]
[]
[]
[null,null,null,null,null,null,null,null,null,null,null,null,null,null,null,null,"Data biegu","Przebiegnięte km","Czas biegu","Średnia prędkość","Miesiąc","Dni tygodnia","Łącznie przebiegniętych kilometrów","z 6259,6 km"]
[null,null,null,null,null,null,null,null,null,null,null,null,null,null,null,null,null,null,null,null,null,"Poniedziałek"]
[null,null,null,null,null,null,null,null,null,null,null,null,null,null,null,null,null,null,null,null,null,"Wtorek"]
[null,null,null,null,null,null,null,null,null,null,null,null,null,null,null,null,null,null,null,null,null,"Środa"]
[null,null,null,null,null,null,null,null,null,null,null,null,null,null,null,null,null,null,null,null,null,"Czwartek"]
[null,null,null,null,null,null,null,null,null,null,null,null,null,null,null,null,null,null,null,null,null,"Piątek"]
[null,null,null,null,null,null,null,null,null,null,null,null,null,null,null,null,null,null,null,null,null,"Sobota"]
[null,null,null,null,null,null,null,null,null,null,null,null,null,null,null,null,null,null,null,null,null,"Niedziela"]

{"sheet":"paprocyniok","index":88,"n_rows":8,"n_cols":8,"rows_kept":8,"cut":false,"hidden":false,"merged":[]}
["Data biegu","Przebiegnięte km","Czas biegu","Średnia prędkość","Miesiąc","Dni tygodnia","Łącznie przebiegniętych kilometrów","z 6259,6 km"]
["27-02-2013",7.26,"52m:47s","7:16 min/km","Luty","Poniedziałek",{"$f":"SUM(B2:B22)","v":45.33}]
["2-03-2013",7.47,"51m:16s","6:52 min/km","Marzec","Wtorek"]
["3-03-2013",7.31,"55m:56s","7:39 min/km","Marzec","Środa"]
["9-03-2013",7.89,"59m:09s","7:30 min/km","Marzec","Czwartek"]
["10-03-2013",7.62,"1g:01m:24s","8:03 min/km","Marzec","Piątek"]
["17-03-2013",7.78,"1g:01m:04s","7:51 min/km","Marzec","Sobota"]
[null,null,null,null,null,"Niedziela"]

{"sheet":"Patres","index":89,"n_rows":8,"n_cols":8,"rows_kept":8,"cut":false,"hidden":false,"merged":[]}
["Data biegu","Przebiegnięte km","Czas biegu","Średnia prędkość","Miesiąc","Dni tygodnia","Łącznie przebiegniętych kilometrów","z 6259,6 km"]
["5-03-2013",10.3,null,null,"Marzec","Poniedziałek",{"$f":"SUM(B2:B20)","v":17.600000000000001}]
["7-03-2013",7.3,null,null,"Marzec","Wtorek"]
[null,null,null,null,null,"Środa"]
[null,null,null,null,null,"Czwartek"]
[null,null,null,null,null,"Piątek"]
[null,null,null,null,null,"Sobota"]
[null,null,null,null,null,"Niedziela"]

{"sheet":"paweel","index":90,"n_rows":8,"n_cols":8,"rows_kept":8,"cut":false,"hidden":false,"merged":[]}
["Data biegu","Przebiegnięte km","Czas biegu","Średnia prędkość","Miesiąc","Dni tygodnia","Łącznie przebiegniętych kilometrów","z 6259,6 km"]
["26-03-2013",5.2,"30m:53s","5:56 min/km","Marzec","Poniedziałek",{"$f":"SUM(B2:B23)","v":5.2}]
[null,null,null,null,null,"Wtorek"]
[null,null,null,null,null,"Środa"]
[null,null,null,null,null,"Czwartek"]
[null,null,null,null,null,"Piątek"]
[null,null,null,null,null,"Sobota"]
[null,null,null,null,null,"Niedziela"]

{"sheet":"pawlakppp","index":91,"n_rows":8,"n_cols":8,"rows_kept":8,"cut":false,"hidden":false,"merged":[]}
["Data biegu","Przebiegnięte km","Czas biegu","Średnia prędkość","Miesiąc","Dni tygodnia","Łącznie przebiegniętych kilometrów","z 6259,6 km"]
["9-03-2013",6.5,null,null,"Marzec","Poniedziałek",{"$f":"SUM(B2:B21)","v":20.75}]
["10-03-2013",4.5,null,null,"Marzec","Wtorek"]
["16-03-2013",4.5,null,null,"Marzec","Środa"]
["17-03-2013",5.25,null,null,"Marzec","Czwartek"]
[null,null,null,null,null,"Piątek"]
[null,null,null,null,null,"Sobota"]
[null,null,null,null,null,"Niedziela"]

{"sheet":"peradon","index":92,"n_rows":21,"n_cols":8,"rows_kept":21,"cut":false,"hidden":false,"merged":[]}
["Data biegu","Przebiegnięte km","Czas biegu","Średnia prędkość","Miesiąc","Dni tygodnia","Łącznie przebiegniętych kilometrów","z 6259,6 km"]
["27-02-2013",12.3,"1g:01m:30s","5:00 min/km","Luty","Poniedziałek",{"$f":"SUM(B2:B30)","v":294.15999999999997}]
["28-02-2013",15.55,"1g:14m:59s","4:49 min/km","Luty","Wtorek"]
["2-03-2013",9.6999999999999993,"zbiegiemnatury","zbiegiemnatury","Marzec","Środa"]
["3-03-2013",38.409999999999997,"2g:49m:11s","5:05 min/km","Marzec","Czwartek"]
["5-03-2013",15.39,"55m:08s","4:22 min/km","Marzec","Piątek"]
["6-03-2013",12.85,"1g:02m:51s","4:53 min/km","Marzec","Sobota"]
["7-03-2013",16.8,"1g:22m:47s","4:56 min/km","Marzec","Niedziela"]
["9-03-2013",20.36,"1g:39m:47s","4:54 min/km","Marzec"]
["10-03-2013",32.26,"2g:36m:48s","5:11 min/km","Marzec"]
["12-03-2013",15,"1g:12m:16s","4:49 min/km","Marzec"]
["13-03-2013",11.57,"54m:04s","4:40 min/km","Marzec"]
["13-03-2013",2.2599999999999998,"12m:33s","5:34 min/km","Marzec"]
["15-03-2013",4.5,"22m:35s","5:01 min/km","Marzec"]
["16-03-2013",10,"36m:30s","3:39 min/km","Marzec"]
["17-03-2013",31.7,"2g:51m:59s","5:26 min/km","Marzec"]
["19-03-2013",13.54,"1g:09m:45s","5:09 min/km","Marzec"]
["21-03-2013",15.1,"1g:11m:08s","4:43 min/km","Marzec"]
["23-03-2013",5,"20m:47s","4:04 min/km","Marzec"]
["5-04-2013",4.2699999999999996,"18m:18s","4:17 min/km","Kwiecień"]
["6-04-2013",7.6,null,null,"Kwiecień"]

{"sheet":"piasek43","index":93,"n_rows":9,"n_cols":8,"rows_kept":9,"cut":false,"hidden":false,"merged":[]}
["Data biegu","Przebiegnięte km","Czas biegu","Średnia prędkość","Miesiąc","Dni tygodnia","Łącznie przebiegniętych kilometrów","z 6259,6 km"]
["23-03-2013",6.5,null,null,"Marzec","Poniedziałek",{"$f":"SUM(B2:B16)","v":54.7}]
["24-03-2013",9.5,null,null,"Marzec","Wtorek"]
["26-03-2013",4.5,null,null,"Marzec","Środa"]
["29-03-2013",4.5,null,null,"Marzec","Czwartek"]
["30-03-2013",10.7,null,null,"Marzec","Piątek"]
["1-04-2013",6,null,null,"Kwiecień","Sobota"]
["2-04-2013",6.5,null,null,"Kwiecień","Niedziela"]
["4-04-2013",6.5,null,null,"Kwiecień"]

{"sheet":"PierwszyOstatniraz","index":94,"n_rows":13,"n_cols":8,"rows_kept":13,"cut":false,"hidden":false,"merged":[]}
["Data biegu","Przebiegnięte km","Czas biegu","Średnia prędkość","Miesiąc","Dni tygodnia","Łącznie przebiegniętych kilometrów","z 6259,6 km"]
["26-02-2013",5,null,null,"Luty","Poniedziałek",{"$f":"SUM(B2:B24)","v":80.589999999999989}]
["27-02-2013",5,null,null,"Luty","Wtorek"]
["4-03-2013",6,null,null,"Marzec","Środa"]
["8-03-2013",5,null,null,"Marzec","Czwartek"]
["14-03-2013",10,"1g:00m:00s","6:00 min/km","Marzec","Piątek"]
["15-03-2013",6.04,"34m:02s","5:38 min/km","Marzec","Sobota"]
["18-03-2013",7.36,"43m:03s","5:51 min/km","Marzec","Niedziela"]
["29-03-2013",5,null,null,"Marzec"]
["30-03-2013",6,null,null,"Marzec"]
["1-04-2013",7.85,null,null,"Kwiecień"]
["4-04-2013",10.24,null,null,"Kwiecień"]
["5-04-2013",7.1,null,null,"Kwiecień"]

{"sheet":"poprostuMarcin","index":95,"n_rows":8,"n_cols":8,"rows_kept":8,"cut":false,"hidden":false,"merged":[]}
["Data biegu","Przebiegnięte km","Czas biegu","Średnia prędkość","Miesiąc","Dni tygodnia","Łącznie przebiegniętych kilometrów","z 6259,6 km"]
["4-03-2013",2.29,"13m:15s","5:47 min/km","Marzec","Poniedziałek",{"$f":"SUM(B2:B24)","v":5.48}]
["4-03-2013",1.29,"6m:43s","5:13 min/km","Marzec","Wtorek"]
["5-03-2013",1.9,"10m:19s","5:34 min/km","Marzec","Środa"]
[null,null,null,null,null,"Czwartek"]
[null,null,null,null,null,"Piątek"]
[null,null,null,null,null,"Sobota"]
[null,null,null,null,null,"Niedziela"]

{"sheet":"ppj","index":96,"n_rows":8,"n_cols":8,"rows_kept":8,"cut":false,"hidden":false,"merged":[]}
["Data biegu","Przebiegnięte km","Czas biegu","Średnia prędkość","Miesiąc","Dni tygodnia","Łącznie przebiegniętych kilometrów","z 6259,6 km"]
["2-03-2013",2.83,null,null,"Marzec","Poniedziałek",{"$f":"SUM(B2:B24)","v":6.86}]
["3-03-2013",4.03,null,null,"Marzec","Wtorek"]
[null,null,null,null,null,"Środa"]
[null,null,null,null,null,"Czwartek"]
[null,null,null,null,null,"Piątek"]
[null,null,null,null,null,"Sobota"]
[null,null,null,null,null,"Niedziela"]

{"sheet":"Pyrakus","index":97,"n_rows":8,"n_cols":8,"rows_kept":8,"cut":false,"hidden":false,"merged":[]}
["Data biegu","Przebiegnięte km","Czas biegu","Średnia prędkość","Miesiąc","Dni tygodnia","Łącznie przebiegniętych kilometrów","z 6259,6 km"]
["27-02-2013",7,null,null,"Luty","Poniedziałek",{"$f":"SUM(B2:B23)","v":7}]
[null,null,null,null,null,"Wtorek"]
[null,null,null,null,null,"Środa"]
[null,null,null,null,null,"Czwartek"]
[null,null,null,null,null,"Piątek"]
[null,null,null,null,null,"Sobota"]
[null,null,null,null,null,"Niedziela"]

{"sheet":"rexio","index":98,"n_rows":8,"n_cols":8,"rows_kept":8,"cut":false,"hidden":false,"merged":[]}
["Data biegu","Przebiegnięte km","Czas biegu","Średnia prędkość","Miesiąc","Dni tygodnia","Łącznie przebiegniętych kilometrów","z 6259,6 km"]
["2-03-2013",5.23,null,null,"Marzec","Poniedziałek",{"$f":"SUM(B2:B22)","v":19.78}]
["4-03-2013",5.24,null,null,"Marzec","Wtorek"]
["26-03-2013",5.31,null,null,"Marzec","Środa"]
["3-04-2013",4,null,null,"Kwiecień","Czwartek"]
[null,null,null,null,null,"Piątek"]
[null,null,null,null,null,"Sobota"]
[null,null,null,null,null,"Niedziela"]

{"sheet":"Rubens","index":99,"n_rows":8,"n_cols":8,"rows_kept":8,"cut":false,"hidden":false,"merged":[]}
["Data biegu","Przebiegnięte km","Czas biegu","Średnia prędkość","Miesiąc","Dni tygodnia","Łącznie przebiegniętych kilometrów","z 6259,6 km"]
["3-03-2013",4.1900000000000004,"28m:01s","6:41 min/km","Marzec","Poniedziałek",{"$f":"SUM(B2:B23)","v":35.81}]
["5-03-2013",4.5,"22m:11s",null,"Marzec","Wtorek"]
["17-03-2013",15,"1g:28m:32s","5:52 min/km","Marzec","Środa"]
["24-03-2013",12.12,"1g:25m:18s","7:02 min/km","Marzec","Czwartek"]
[null,null,null,null,null,"Piątek"]
[null,null,null,null,null,"Sobota"]
[null,null,null,null,null,"Niedziela"]

{"sheet":"sayane","index":100,"n_rows":14,"n_cols":8,"rows_kept":14,"cut":false,"hidden":false,"merged":[]}
["Data biegu","Przebiegnięte km","Czas biegu","Średnia prędkość","Miesiąc","Dni tygodnia","Łącznie przebiegniętych kilometrów","z 6259,6 km"]
["1-03-2013",2.2999999999999998,null,null,"Marzec","Poniedziałek",{"$f":"SUM(B2:B23)","v":48.740000000000009}]
["4-03-2013",5.39,null,null,"Marzec","Wtorek"]
["6-03-2013",5.26,null,null,"Marzec","Środa"]
["8-03-2013",5.26,null,null,"Marzec","Czwartek"]
["11-03-2013",4.05,"23m:11s","5:44 min/km","Marzec","Piątek"]
["12-03-2013",4.17,"23m:59s","5:45 min/km","Marzec","Sobota"]
["15-03-2013",4.1399999999999997,"24m:03s","5:48 min/km","Marzec","Niedziela"]
["15-03-2013",0.51,null,null,"Marzec"]
["18-03-2013",5.0199999999999996,"28m:26s","5:40 min/km","Marzec"]
["19-03-2013",2.31,null,null,"Marzec"]
["20-03-2013",2.31,"12:04:00","5:13 min/km","Marzec"]
["30-03-2013",2.63,null,null,"Marzec"]
["4-04-2013",5.39,null,null,"Kwiecień"]

{"sheet":"Schwarz_Charakter","index":101,"n_rows":15,"n_cols":8,"rows_kept":15,"cut":false,"hidden":false,"merged":[]}
["Data biegu","Przebiegnięte km","Czas biegu","Średnia prędkość","Miesiąc","Dni tygodnia","Łącznie przebiegniętych kilometrów","z 6259,6 km"]
["27-02-2013",5.13,null,null,"Luty","Poniedziałek",{"$f":"SUM(B2:B20)","v":107.06999999999998}]
["28-02-2013",7.52,null,null,"Luty","Wtorek"]
["2-03-2013",9.8699999999999992,null,null,"Marzec","Środa"]
["4-03-2013",9.2200000000000006,null,null,"Marzec","Czwartek"]
["5-03-2013",6.05,null,null,"Marzec","Piątek"]
["6-03-2013",8.51,null,null,"Marzec","Sobota"]
["15-03-2013",5.54,null,null,"Marzec","Niedziela"]
["19-03-2013",15.17,"1g:32m:03s","6:04 min/km","Marzec"]
["22-03-2013",18.190000000000001,"1g:50m:02s","6:03 min/km","Marzec"]
["24-03-2013",5.41,"47m:22s","8:45 min/km","Marzec"]
["24-03-2013",1.54,"12m:13s","7:56 min/km","Marzec"]
["27-03-2013",11.6,"1g:10m:47s","6:06 min/km","Marzec"]
["4-04-2013",1.63,"10m:45s","6:34 min/km","Kwiecień"]
["4-04-2013",1.69,"11m:06s","6:34 min/km","Kwiecień"]

{"sheet":"Scorpio412","index":102,"n_rows":8,"n_cols":8,"rows_kept":8,"cut":false,"hidden":false,"merged":[]}
["Data biegu","Przebiegnięte km","Czas biegu","Średnia prędkość","Miesiąc","Dni tygodnia","Łącznie przebiegniętych kilometrów","z 6259,6 km"]
["20-03-2013",4,null,null,"Marzec","Poniedziałek",{"$f":"SUM(B2:B26)","v":8.1999999999999993}]
["25-03-2013",4.2,null,null,"Marzec","Wtorek"]
[null,null,null,null,null,"Środa"]
[null,null,null,null,null,"Czwartek"]
[null,null,null,null,null,"Piątek"]
[null,null,null,null,null,"Sobota"]
[null,null,null,null,null,"Niedziela"]

{"sheet":"SiekYersky","index":103,"n_rows":8,"n_cols":8,"rows_kept":8,"cut":false,"hidden":false,"merged":[]}
["Data biegu","Przebiegnięte km","Czas biegu","Średnia prędkość","Miesiąc","Dni tygodnia","Łącznie przebiegniętych kilometrów","z 6259,6 km"]
["27-02-2013",5.49,"31m:37s","5:45 min/km","Luty","Poniedziałek",{"$f":"SUM(B2:B21)","v":28.32}]
["28-02-2013",2.14,"10m:20s","4:50 min/km","Luty","Wtorek"]
["1-03-2013",6.24,"34m:37s","5:33 min/km","Marzec","Środa"]
["4-03-2013",6.87,"31m:07s","5:29 min/km","Marzec","Czwartek"]
["5-03-2013",7.58,"41m:51s","5:31 min/km","Marzec","Piątek"]
[null,null,null,null,null,"Sobota"]
[null,null,null,null,null,"Niedziela"]

{"sheet":"Skurwozaur","index":104,"n_rows":8,"n_cols":8,"rows_kept":8,"cut":false,"hidden":false,"merged":[]}
["Data biegu","Przebiegnięte km","Czas biegu","Średnia prędkość","Miesiąc","Dni tygodnia","Łącznie przebiegniętych kilometrów","z 6259,6 km"]
["10-03-2013",4.3,"26m:28s","6:08 min/km","Marzec","Poniedziałek",{"$f":"SUM(B2:B18)","v":13.649999999999999}]
["17-03-2013",5.0999999999999996,"31m:23s","6:09 min/km","Marzec","Wtorek"]
["31-03-2013",4.25,"27m:23s","6:27 min/km","Marzec","Środa"]
[null,null,null,null,null,"Czwartek"]
[null,null,null,null,null,"Piątek"]
[null,null,null,null,null,"Sobota"]
[null,null,null,null,null,"Niedziela"]

{"sheet":"Smookie","index":105,"n_rows":8,"n_cols":8,"rows_kept":8,"cut":false,"hidden":false,"merged":[]}
["Data biegu","Przebiegnięte km","Czas biegu","Średnia prędkość","Miesiąc","Dni tygodnia","Łącznie przebiegniętych kilometrów","z 6259,6 km"]
["4-03-2013",6,null,null,"Marzec","Poniedziałek",{"$f":"SUM(B2:B24)","v":12}]
["5-03-2013",6,null,null,"Marzec","Wtorek"]
[null,null,null,null,null,"Środa"]
[null,null,null,null,null,"Czwartek"]
[null,null,null,null,null,"Piątek"]
[null,null,null,null,null,"Sobota"]
[null,null,null,null,null,"Niedziela"]

{"sheet":"Solitary_Man","index":106,"n_rows":8,"n_cols":8,"rows_kept":8,"cut":false,"hidden":false,"merged":[]}
["Data biegu","Przebiegnięte km","Czas biegu","Średnia prędkość","Miesiąc","Dni tygodnia","Łącznie przebiegniętych kilometrów","z 6259,6 km"]
["6-03-2013",2.8,null,null,"Marzec","Poniedziałek",{"$f":"SUM(B2:B19)","v":16.290000000000003}]
["8-03-2013",2.8,null,null,"Marzec","Wtorek"]
["10-03-2013",2.63,null,null,"Marzec","Środa"]
["13-03-2013",2.46,null,null,"Marzec","Czwartek"]
["20-03-2013",2.8,null,null,"Marzec","Piątek"]
["30-03-2013",2.8,null,null,"Marzec","Sobota"]
[null,null,null,null,null,"Niedziela"]

{"sheet":"Sordi","index":107,"n_rows":8,"n_cols":8,"rows_kept":8,"cut":false,"hidden":false,"merged":[]}
["Data biegu","Przebiegnięte km","Czas biegu","Średnia prędkość","Miesiąc","Dni tygodnia","Łącznie przebiegniętych kilometrów","z 6259,6 km"]
["27-02-2013",3.06,"14m:55s","05:42 min/km","Luty","Poniedziałek",{"$f":"SUM(B2:B23)","v":26.65}]
["2-03-2013",5.68,"28m:53s","05:05 min/km","Marzec","Wtorek"]
["5-03-2013",7.71,"34m:48s","4:40 min/km","Marzec","Środa"]
["15-03-2013",10.199999999999999,"50m:09s","4:55 min/km","Marzec","Czwartek"]
[null,null,null,null,null,"Piątek"]
[null,null,null,null,null,"Sobota"]
[null,null,null,null,null,"Niedziela"]

{"sheet":"Splot","index":108,"n_rows":8,"n_cols":8,"rows_kept":8,"cut":false,"hidden":false,"merged":[]}
["Data biegu","Przebiegnięte km","Czas biegu","Średnia prędkość","Miesiąc","Dni tygodnia","Łącznie przebiegniętych kilometrów","z 6259,6 km"]
["4-03-2013",12.03,null,null,"Marzec","Poniedziałek",{"$f":"SUM(B2:B23)","v":110.22}]
["6-03-2013",21.12,"1g:48m:18s","5:10 min/km","Marzec","Wtorek"]
["9-03-2013",10.02,"45m:32s","4:33 min/km","Marzec","Środa"]
["16-03-2013",15,"1g:18m:34s","5:14 min/km","Marzec","Czwartek"]
["23-03-2013",10.02,null,null,"Marzec","Piątek"]
["30-03-2013",20.079999999999998,"1g:50m:36s","5:30 min/km","Marzec","Sobota"]
["1-04-2013",21.95,"2g:01m:10s","5:31 min/km","Kwiecień","Niedziela"]

{"sheet":"stefan_pompka","index":109,"n_rows":8,"n_cols":8,"rows_kept":8,"cut":false,"hidden":false,"merged":[]}
["Data biegu","Przebiegnięte km","Czas biegu","Średnia prędkość","Miesiąc","Dni tygodnia","Łącznie przebiegniętych kilometrów","z 6259,6 km"]
["5-03-2013",11.71,null,null,"Marzec","Poniedziałek",{"$f":"SUM(B2:B25)","v":11.71}]
[null,null,null,null,null,"Wtorek"]
[null,null,null,null,null,"Środa"]
[null,null,null,null,null,"Czwartek"]
[null,null,null,null,null,"Piątek"]
[null,null,null,null,null,"Sobota"]
[null,null,null,null,null,"Niedziela"]

{"sheet":"stepBYstep","index":110,"n_rows":8,"n_cols":8,"rows_kept":8,"cut":false,"hidden":false,"merged":[]}
["Data biegu","Przebiegnięte km","Czas biegu","Średnia prędkość","Miesiąc","Dni tygodnia","Łącznie przebiegniętych kilometrów","z 6259,6 km"]
["6-03-2013",2.96,null,null,"Marzec","Poniedziałek",{"$f":"SUM(B2:B18)","v":6.15}]
["8-03-2013",3.19,null,null,"Marzec","Wtorek"]
[null,null,null,null,null,"Środa"]
[null,null,null,null,null,"Czwartek"]
[null,null,null,null,null,"Piątek"]
[null,null,null,null,null,"Sobota"]
[null,null,null,null,null,"Niedziela"]

{"sheet":"Strzalka","index":111,"n_rows":8,"n_cols":8,"rows_kept":8,"cut":false,"hidden":false,"merged":[]}
["Data biegu","Przebiegnięte km","Czas biegu","Średnia prędkość","Miesiąc","Dni tygodnia","Łącznie przebiegniętych kilometrów","z 6259,6 km"]
["2-03-2013",10.039999999999999,"56m:39s","5:39 min/km","Marzec","Poniedziałek",{"$f":"SUM(B2:B28)","v":47.52}]
["4-03-2013",10.94,"01g:00m:35s","5:32 min/km","Marzec","Wtorek"]
["8-03-2013",10.98,"58m:28s","5:19 min/km","Marzec","Środa"]
["10-03-2013",10.07,"54m:44s","5:26 min/km","Marzec","Czwartek"]
["11-03-2013",5.49,"29m:02s","5:17 min/km","Marzec","Piątek"]
[null,null,null,null,null,"Sobota"]
[null,null,null,null,null,"Niedziela"]

{"sheet":"surma","index":112,"n_rows":8,"n_cols":8,"rows_kept":8,"cut":false,"hidden":false,"merged":[]}
["Data biegu","Przebiegnięte km","Czas biegu","Średnia prędkość","Miesiąc","Dni tygodnia","Łącznie przebiegniętych kilometrów","z 6259,6 km"]
["4-03-2013",3,null,null,"Marzec","Poniedziałek",{"$f":"SUM(B2:B28)","v":3}]
[null,null,null,null,null,"Wtorek"]
[null,null,null,null,null,"Środa"]
[null,null,null,null,null,"Czwartek"]
[null,null,null,null,null,"Piątek"]
[null,null,null,null,null,"Sobota"]
[null,null,null,null,null,"Niedziela"]

{"sheet":"sztukamasazu","index":113,"n_rows":8,"n_cols":8,"rows_kept":8,"cut":false,"hidden":false,"merged":[]}
["Data biegu","Przebiegnięte km","Czas biegu","Średnia prędkość","Miesiąc","Dni tygodnia","Łącznie przebiegniętych kilometrów","z 6259,6 km"]
["27-02-2013",6.6,"36m:17s","5:29 min/km","Luty","Poniedziałek",{"$f":"SUM(B2:B18)","v":38.799999999999997}]
["28-02-2013",11.2,"1g:04m:01s","5:42 min/km","Luty","Wtorek"]
["17-03-2013",21,"1g:58m:20s","5:37 min/km","Marzec","Środa"]
[null,null,null,null,null,"Czwartek"]
[null,null,null,null,null,"Piątek"]
[null,null,null,null,null,"Sobota"]
[null,null,null,null,null,"Niedziela"]

{"sheet":"szuwarek_mini","index":114,"n_rows":8,"n_cols":8,"rows_kept":8,"cut":false,"hidden":false,"merged":[]}
["Data biegu","Przebiegnięte km","Czas biegu","Średnia prędkość","Miesiąc","Dni tygodnia","Łącznie przebiegniętych kilometrów","z 6259,6 km"]
["2-03-2013",2.4,null,null,"Marzec","Poniedziałek",{"$f":"SUM(B2:B25)","v":2.4}]
[null,null,null,null,null,"Wtorek"]
[null,null,null,null,null,"Środa"]
[null,null,null,null,null,"Czwartek"]
[null,null,null,null,null,"Piątek"]
[null,null,null,null,null,"Sobota"]
[null,null,null,null,null,"Niedziela"]

{"sheet":"Takumi","index":115,"n_rows":18,"n_cols":8,"rows_kept":18,"cut":false,"hidden":false,"merged":[]}
["Data biegu","Przebiegnięte km","Czas biegu","Średnia prędkość","Miesiąc","Dni tygodnia","Łącznie przebiegniętych kilometrów","z 6259,6 km"]
["15-03-2013",1.37,null,null,"Marzec","Poniedziałek",{"$f":"SUM(B2:B20)","v":85.97}]
["17-03-2013",2.2000000000000002,null,null,"Marzec","Wtorek"]
["18-03-2013",2.9,null,null,"Marzec","Środa"]
["19-03-2013",3.05,null,null,"Marzec","Czwartek"]
["20-03-2013",3.68,null,null,"Marzec","Piątek"]
["21-03-2013",4.1100000000000003,null,null,"Marzec","Sobota"]
["22-03-2013",5.22,null,null,"Marzec","Niedziela"]
["23-03-2013",6.34,null,null,"Marzec"]
["24-03-2013",5.27,null,null,"Marzec"]
["26-03-2013",5.07,null,null,"Marzec"]
["27-03-2013",3.21,null,null,"Marzec"]
["29-03-2013",5.71,null,null,"Marzec"]
["30-03-2013",9.4,null,null,"Marzec"]
["31-03-2013",7.35,null,null,"Marzec"]
["2-04-2013",4.1500000000000004,null,null,"Kwiecień"]
["3-04-2013",5.44,null,null,"Kwiecień"]
["4-04-2013",11.5,null,null,"Kwiecień"]

{"sheet":"Tapirro","index":116,"n_rows":8,"n_cols":8,"rows_kept":8,"cut":false,"hidden":false,"merged":[]}
["Data biegu","Przebiegnięte km","Czas biegu","Średnia prędkość","Miesiąc","Dni tygodnia","Łącznie przebiegniętych kilometrów","z 6259,6 km"]
["4-03-2013",6.4,null,null,"Marzec","Poniedziałek",{"$f":"SUM(B2:B23)","v":9.9499999999999993}]
["5-03-2013",3.55,null,null,"Marzec","Wtorek"]
[null,null,null,null,null,"Środa"]
[null,null,null,null,null,"Czwartek"]
[null,null,null,null,null,"Piątek"]
[null,null,null,null,null,"Sobota"]
[null,null,null,null,null,"Niedziela"]

{"sheet":"teryuu","index":117,"n_rows":13,"n_cols":8,"rows_kept":13,"cut":false,"hidden":false,"merged":[]}
["Data biegu","Przebiegnięte km","Czas biegu","Średnia prędkość","Miesiąc","Dni tygodnia","Łącznie przebiegniętych kilometrów","z 6259,6 km"]
["4-03-2013",13.17,null,null,"Marzec","Poniedziałek",{"$f":"SUM(B2:B26)","v":89.66}]
["6-03-2013",4.5599999999999996,null,null,"Marzec","Wtorek"]
["8-03-2013",7.7,null,null,"Marzec","Środa"]
["9-03-2013",7.56,null,null,"Marzec","Czwartek"]
["14-03-2013",7.43,null,null,"Marzec","Piątek"]
["16-03-2013",7.78,null,null,"Marzec","Sobota"]
["20-03-2013",4.08,null,null,"Marzec","Niedziela"]
["23-03-2013",10.27,null,null,"Marzec"]
["27-03-2013",5,null,"5:11 min/km","Marzec"]
["29-03-2013",5,null,null,"Marzec"]
["30-03-2013",7.21,null,null,"Marzec"]
["5-04-2013",9.9,null,"5:37 min/km","Kwiecień"]

{"sheet":"thetot","index":118,"n_rows":8,"n_cols":8,"rows_kept":8,"cut":false,"hidden":false,"merged":[]}
["Data biegu","Przebiegnięte km","Czas biegu","Średnia prędkość","Miesiąc","Dni tygodnia","Łącznie przebiegniętych kilometrów","z 6259,6 km"]
["26-03-2013",4,null,null,"Marzec","Poniedziałek",{"$f":"SUM(B2:B19)","v":9.6999999999999993}]
["30-03-2013",2.5,null,null,"Marzec","Wtorek"]
["1-04-2013",3.2,null,null,"Kwiecień","Środa"]
[null,null,null,null,null,"Czwartek"]
[null,null,null,null,null,"Piątek"]
[null,null,null,null,null,"Sobota"]
[null,null,null,null,null,"Niedziela"]

{"sheet":"tiksiu","index":119,"n_rows":11,"n_cols":8,"rows_kept":11,"cut":false,"hidden":false,"merged":[]}
["Data biegu","Przebiegnięte km","Czas biegu","Średnia prędkość","Miesiąc","Dni tygodnia","Łącznie przebiegniętych kilometrów","z 6259,6 km"]
["5-03-2013",4.4000000000000004,null,null,"Marzec","Poniedziałek",{"$f":"SUM(B2:B27)","v":43.31}]
["7-03-2013",4.13,null,null,"Marzec","Wtorek"]
["9-03-2013",4.1900000000000004,null,null,"Marzec","Środa"]
["11-03-2013",4.18,null,null,"Marzec","Czwartek"]
["13-03-2013",4.21,null,null,"Marzec","Piątek"]
["16-03-2013",4.57,null,null,"Marzec","Sobota"]
["18-03-2013",4.3600000000000003,null,null,"Marzec","Niedziela"]
["20-03-2013",4.5199999999999996,null,null,"Marzec"]
["29-03-2013",4.38,null,null,"Marzec"]
["3-04-2013",4.37,null,null,"Kwiecień"]

{"sheet":"tomek860827","index":120,"n_rows":8,"n_cols":8,"rows_kept":8,"cut":false,"hidden":false,"merged":[]}
["Data biegu","Przebiegnięte km","Czas biegu","Średnia prędkość","Miesiąc","Dni tygodnia","Łącznie przebiegniętych kilometrów","z 6259,6 km"]
["25-03-2013",5.0199999999999996,"26m:00s","5:11 min/km","Marzec","Poniedziałek",{"$f":"SUM(B2:B22)","v":18.080000000000002}]
["3-04-2013",6.03,"29m:14s","4:51 min/km","Kwiecień","Wtorek"]
["5-04-2013",7.03,"34m:54s","4:58 min/km","Kwiecień","Środa"]
[null,null,null,null,null,"Czwartek"]
[null,null,null,null,null,"Piątek"]
[null,null,null,null,null,"Sobota"]
[null,null,null,null,null,"Niedziela"]

{"sheet":"tomy86","index":121,"n_rows":13,"n_cols":8,"rows_kept":13,"cut":false,"hidden":false,"merged":[]}
["Data biegu","Przebiegnięte km","Czas biegu","Średnia prędkość","Miesiąc","Dni tygodnia","Łącznie przebiegniętych kilometrów","z 6259,6 km"]
["27-02-2013",5,"21m:42s",null,"Luty","Poniedziałek",{"$f":"SUM(B2:B23)","v":114.33000000000001}]
["1-03-2013",5.14,"22m:32s",null,"Marzec","Wtorek"]
["5-03-2013",8.17,"37m:28s",null,"Marzec","Środa"]
["7-03-2013",9,"43m:55s",null,"Marzec","Czwartek"]
["11-03-2013",5,"22m:12s","4:26 min/km","Marzec","Piątek"]
["14-03-2013",11.02,"50m:46s","4:32 min/km","Marzec","Sobota"]
["20-03-2013",11.18,"49m:49s","4:27 min/km","Marzec","Niedziela"]
["22-03-2013",10.89,"51m:47s","4:45 min/km","Marzec"]
["26-03-2013",15.34,"1g:10m:41s","4:37 min/km","Marzec"]
["29-03-2013",11.16,"49m:48s","4:28 min/km","Marzec"]
["2-04-2013",11.21,"49m:35s","4:25 min/km","Kwiecień"]
["5-04-2013",11.22,"51m:54s","4:38 min/km","Kwiecień"]

{"sheet":"turbosowa","index":122,"n_rows":16,"n_cols":8,"rows_kept":16,"cut":false,"hidden":false,"merged":[]}
["Data biegu","Przebiegnięte km","Czas biegu","Średnia prędkość","Miesiąc","Dni tygodnia","Łącznie przebiegniętych kilometrów","z 6259,6 km"]
["4-03-2013",3.42,"28m:18s","8:17 min/km","Marzec","Poniedziałek",{"$f":"SUM(B2:B28)","v":89.14}]
["6-03-2013",3.67,"17m:45s","6:25 min/km","Marzec","Wtorek"]
["8-03-2013",4.4400000000000004,"34m:55s","7:52 min/km","Marzec","Środa"]
["9-03-2013",5.05,"39m:38s","7:50 min/km","Marzec","Czwartek"]
["12-03-2013",5.32,"42m:06s","7:55 min/km","Marzec","Piątek"]
["13-03-2013",5.6,"44m:20s","7:55 min/km","Marzec","Sobota"]
["16-03-2013",5,null,null,"Marzec","Niedziela"]
["17-03-2013",7.67,"1g:10m:30s","9:11 min/km","Marzec"]
["18-03-2013",4.83,"41m:00s","8:30 min/km","Marzec"]
["20-03-2013",7,"50m:41s","9:02 min/km","Marzec"]
["23-03-2013",8.6199999999999992,"1g:05m:10s","7:50 min/km","Marzec"]
["24-03-2013",7,"57m:20s","8:50 min/km","Marzec"]
["26-03-2013",3.83,"29m:20s","7:39 min/km","Marzec"]
["30-03-2013",12,"1g:43m:36s","9:26 min/km","Marzec"]
["1-04-2013",5.69,"45m:38s","8:02 min/km","Kwiecień"]

{"sheet":"Queltas","index":123,"n_rows":8,"n_cols":8,"rows_kept":8,"cut":false,"hidden":false,"merged":[]}
["Data biegu","Przebiegnięte km","Czas biegu","Średnia prędkość","Miesiąc","Dni tygodnia","Łącznie przebiegniętych kilometrów","z 6259,6 km"]
["27-03-2013",1.2,null,null,"Marzec","Poniedziałek",{"$f":"SUM(B2:B22)","v":1.2}]
[null,null,null,null,null,"Wtorek"]
[null,null,null,null,null,"Środa"]
[null,null,null,null,null,"Czwartek"]
[null,null,null,null,null,"Piątek"]
[null,null,null,null,null,"Sobota"]
[null,null,null,null,null,"Niedziela"]

{"sheet":"Quilo","index":124,"n_rows":8,"n_cols":8,"rows_kept":8,"cut":false,"hidden":false,"merged":[]}
["Data biegu","Przebiegnięte km","Czas biegu","Średnia prędkość","Miesiąc","Dni tygodnia","Łącznie przebiegniętych kilometrów","z 6259,6 km"]
["4-03-2013",9.84,"1g:06m:37s","6:46 min/km","Marzec","Poniedziałek",{"$f":"SUM(B2:B26)","v":40.130000000000003}]
["6-03-2013",10.01,"1g:01m:17s","6:07 min/km","Marzec","Wtorek"]
["23-03-2013",10.14,"1g:00m:15s","5:56 min/km","Marzec","Środa"]
["25-03-2013",10.14,"58m:28s","5:46 min/km","Marzec","Czwartek"]
[null,null,null,null,null,"Piątek"]
[null,null,null,null,null,"Sobota"]
[null,null,null,null,null,"Niedziela"]

{"sheet":"ursua","index":125,"n_rows":10,"n_cols":8,"rows_kept":10,"cut":false,"hidden":false,"merged":[]}
["Data biegu","Przebiegnięte km","Czas biegu","Średnia prędkość","Miesiąc","Dni tygodnia","Łącznie przebiegniętych kilometrów","z 6259,6 km"]
["22-03-2013",2.5099999999999998,null,null,"Marzec","Poniedziałek",{"$f":"SUM(B2:B27)","v":53.72}]
["24-03-2013",6.03,"32m:31s","5:23 min/km","Marzec","Wtorek"]
["26-03-2013",8,null,null,"Marzec","Środa"]
["29-03-2013",7,null,null,"Marzec","Czwartek"]
["30-03-2013",10.15,null,null,"Marzec","Piątek"]
["31-03-2013",5,null,null,"Marzec","Sobota"]
["1-04-2013",6.03,"33m:29s","5:33 min/km","Kwiecień","Niedziela"]
["3-04-2013",4,null,null,"Kwiecień"]
["5-04-2013",5,"25m:41s","5:08 min/km","Kwiecień"]

{"sheet":"Vegetassj5","index":126,"n_rows":8,"n_cols":8,"rows_kept":8,"cut":false,"hidden":false,"merged":[]}
["Data biegu","Przebiegnięte km","Czas biegu","Średnia prędkość","Miesiąc","Dni tygodnia","Łącznie przebiegniętych kilometrów","z 6259,6 km"]
["26-02-2013",6.7,null,null,"Luty","Poniedziałek",{"$f":"SUM(B2:B24)","v":6.7}]
[null,null,null,null,null,"Wtorek"]
[null,null,null,null,null,"Środa"]
[null,null,null,null,null,"Czwartek"]
[null,null,null,null,null,"Piątek"]
[null,null,null,null,null,"Sobota"]
[null,null,null,null,null,"Niedziela"]

{"sheet":"ViZ_P","index":127,"n_rows":8,"n_cols":8,"rows_kept":8,"cut":false,"hidden":false,"merged":[]}
["Data biegu","Przebiegnięte km","Czas biegu","Średnia prędkość","Miesiąc","Dni tygodnia","Łącznie przebiegniętych kilometrów","z 6259,6 km"]
["10-03-2013",5.01,"41m:17s","8:14 min/km","Marzec","Poniedziałek",{"$f":"SUM(B2:B15)","v":10.36}]
["17-03-2013",5.35,"44m:28s","8:18 min/km","Marzec","Wtorek"]
[null,null,null,null,null,"Środa"]
[null,null,null,null,null,"Czwartek"]
[null,null,null,null,null,"Piątek"]
[null,null,null,null,null,"Sobota"]
[null,null,null,null,null,"Niedziela"]

{"sheet":"_w3s","index":128,"n_rows":14,"n_cols":8,"rows_kept":14,"cut":false,"hidden":false,"merged":[]}
["Data biegu","Przebiegnięte km","Czas biegu","Średnia prędkość","Miesiąc","Dni tygodnia","Łącznie przebiegniętych kilometrów","z 6259,6 km"]
["2-03-2013",7.43,"40m:41s","5:28 min/km","Marzec","Poniedziałek",{"$f":"SUM(B2:B26)","v":116.71000000000001}]
["3-03-2013",10.06,"53m:30s","5:19 min/km","Marzec","Wtorek"]
["10-03-2013",11.72,"1g:00m:14s","5:08 min/km","Marzec","Środa"]
["16-03-2013",11.41,"55m:59s","4:54 min/km","Marzec","Czwartek"]
["18-03-2013",13.03,"1g:05m:31","5:02 min/km","Marzec","Piątek"]
["20-03-2013",13.02,"1g:04m:14s","4:56 min/km","Marzec","Sobota"]
["24-03-2013",2.83,"12m:10s","4:18 min/km","Marzec","Niedziela"]
["26-03-2013",6.66,"32m:06s","4:49 min/km","Marzec"]
["28-03-2013",5.18,"24m:58s","4:49 min/km","Marzec"]
["31-03-2013",14.12,"1g:10m:43s","5:00 min/km","Marzec"]
["1-04-2013",8.16,"39m:05s","4:47 min/km","Kwiecień"]
["3-04-2013",7.08,"34m:18s","4:51 min/km","Kwiecień"]
["4-04-2013",6.01,"28m:36s","4:45 min/km","Kwiecień"]

{"sheet":"werniol","index":129,"n_rows":10,"n_cols":8,"rows_kept":10,"cut":false,"hidden":false,"merged":[]}
["Data biegu","Przebiegnięte km","Czas biegu","Średnia prędkość","Miesiąc","Dni tygodnia","Łącznie przebiegniętych kilometrów","z 6259,6 km"]
["1-03-2013",7.01,"34m:05s","4:52 min/km","Marzec","Poniedziałek",{"$f":"SUM(B2:B24)","v":85.080000000000013}]
["2-03-2013",10.38,"53m:22s","5:09 min/km","Marzec","Wtorek"]
["5-03-2013",10.17,"52m:49s","5:12 min/km","Marzec","Środa"]
["7-03-2013",10.15,"54m:09s","5:20 min/km","Marzec","Czwartek"]
["9-03-2013",10.02,"51m:42s","5:10 min/km","Marzec","Piątek"]
["11-03-2013",10.199999999999999,"50m:56s","6:44 min/km","Marzec","Sobota"]
["14-03-2013",10.199999999999999,null,null,"Marzec","Niedziela"]
["17-03-2013",8.5399999999999991,"43m:07s","5:03 min/km","Marzec"]
["20-03-2013",8.41,"41m:06s","4:53 min/km","Marzec"]

{"sheet":"WesolyMorswin","index":130,"n_rows":9,"n_cols":8,"rows_kept":9,"cut":false,"hidden":false,"merged":[]}
["Data biegu","Przebiegnięte km","Czas biegu","Średnia prędkość","Miesiąc","Dni tygodnia","Łącznie przebiegniętych kilometrów","z 6259,6 km"]
["27-03-2013",60.6,null,null,"Marzec","Poniedziałek",{"$f":"SUM(B2:B16)","v":74.290000000000006}]
["26,03-2013",2.0699999999999998,null,null,"Marzec"]
["30-03-2013",6.62,null,null,"Marzec","Wtorek"]
["6-04-2013",5,null,null,"Kwiecień","Środa"]
[null,null,null,null,null,"Czwartek"]
[null,null,null,null,null,"Piątek"]
[null,null,null,null,null,"Sobota"]
[null,null,null,null,null,"Niedziela"]

{"sheet":"winnux","index":131,"n_rows":8,"n_cols":8,"rows_kept":8,"cut":false,"hidden":false,"merged":[]}
["Data biegu","Przebiegnięte km","Czas biegu","Średnia prędkość","Miesiąc","Dni tygodnia","Łącznie przebiegniętych kilometrów","z 6259,6 km"]
["5-04-2013",1.2,null,null,"Kwiecień","Poniedziałek",{"$f":"SUM(B2:B25)","v":1.2}]
[null,null,null,null,null,"Wtorek"]
[null,null,null,null,null,"Środa"]
[null,null,null,null,null,"Czwartek"]
[null,null,null,null,null,"Piątek"]
[null,null,null,null,null,"Sobota"]
[null,null,null,null,null,"Niedziela"]

{"sheet":"wojjaskula","index":132,"n_rows":8,"n_cols":8,"rows_kept":8,"cut":false,"hidden":false,"merged":[]}
["Data biegu","Przebiegnięte km","Czas biegu","Średnia prędkość","Miesiąc","Dni tygodnia","Łącznie przebiegniętych kilometrów","z 6259,6 km"]
["5-03-2013",2.5,null,null,"Marzec","Poniedziałek",{"$f":"SUM(B2:B23)","v":2.5}]
[null,null,null,null,null,"Wtorek"]
[null,null,null,null,null,"Środa"]
[null,null,null,null,null,"Czwartek"]
[null,null,null,null,null,"Piątek"]
[null,null,null,null,null,"Sobota"]
[null,null,null,null,null,"Niedziela"]

{"sheet":"WujekWacek","index":133,"n_rows":19,"n_cols":8,"rows_kept":19,"cut":false,"hidden":false,"merged":[]}
["Data biegu","Przebiegnięte km","Czas biegu","Średnia prędkość","Miesiąc","Dni tygodnia","Łącznie przebiegniętych kilometrów","z 6259,6 km"]
["27-02-2013",6.5,"35m:18s","8:41 min/mi","Luty","Poniedziałek",{"$f":"SUM(B2:B23)","v":228.89999999999995}]
["28-02-2013",12.3,"1g:05m:14s","8:32 min/mi","Luty","Wtorek"]
["1-03-2013",6.4,"35m:51s","8:58 min/mi","Marzec","Środa"]
["2-03-2013",32.5,"3g:17m:47s","9:46 min/mi","Marzec","Czwartek"]
["5-03-2013",7.9,"44m:10s","8:56 min/mi","Marzec","Piątek"]
["6-03-2013",14.1,"1g:15m:00s","8:32 min/mi","Marzec","Sobota"]
["7-03-2013",6.4,"35m:54s","9:05 min/mi","Marzec","Niedziela"]
["9-03-2013",11.1,"1g:17m:35s","11:15 min/mi","Marzec"]
["13-03-2013",6.5,"32m:30s","8:02 min/mi","Marzec"]
["20-03-2013",7.8,"41m:10s","8:28 min/mi","Marzec"]
["21-03-2013",14.3,"1g:17m:01s","8:39 min/mi","Marzec"]
["21-03-2013",9.3000000000000007,"47m:42s","8:14 min/mi","Marzec"]
["23-03-2013",28.2,"2g:48m:28s","9:24 min/mi","Marzec"]
["27-03-2013",8.6,"46m:18s","8:37 min/mi","Marzec"]
["1-04-2013",21.7,"2g:00m:42s","8:57 min/mi","Kwiecień"]
["2-04-2013",8.6,"47m:04s","8:49 min/mi","Kwiecień"]
["3-04-2013",17.100000000000001,"1g:39m:07s","9:19 min/mi","Kwiecień"]
["4-04-2013",9.6,"52m:36s","8:46 min/mi","Kwiecień"]

{"sheet":"wwojtus2304","index":134,"n_rows":14,"n_cols":8,"rows_kept":14,"cut":false,"hidden":false,"merged":[]}
["Data biegu","Przebiegnięte km","Czas biegu","Średnia prędkość","Miesiąc","Dni tygodnia","Łącznie przebiegniętych kilometrów","z 6259,6 km"]
["27-02-2013",5.35,null,null,"Luty","Poniedziałek",{"$f":"SUM(B2:B24)","v":71.789999999999992}]
["1-03-2013",5.35,null,null,"Marzec","Wtorek"]
["3-03-2013",4.7,null,null,"Marzec","Środa"]
["6-03-2013",5.35,null,null,"Marzec","Czwartek"]
["9-03-2013",6.49,null,null,"Marzec","Piątek"]
["11-03-2013",7.22,null,"5:37 min/km","Marzec","Sobota"]
["15-03-2013",3.59,null,null,"Marzec","Niedziela"]
["17-03-2013",8.32,null,"5:39 min/km","Marzec"]
["19-03-2013",5.35,null,"5:32 min/km","Marzec"]
["25-03-2013",5.91,null,"5:32 min/km","Marzec"]
["28-03-2013",2.8,null,"5:29 min/km","Marzec"]
["3-04-2013",5.38,null,"5:41 min/km","Kwiecień"]
["5-04-2013",5.98,null,"5:36 min/km","Kwiecień"]

{"sheet":"xim","index":135,"n_rows":8,"n_cols":8,"rows_kept":8,"cut":false,"hidden":false,"merged":[]}
["Data biegu","Przebiegnięte km","Czas biegu","Średnia prędkość","Miesiąc","Dni tygodnia","Łącznie przebiegniętych kilometrów","z 6259,6 km"]
["23-03-2013",2.0499999999999998,null,null,"Marzec","Poniedziałek",{"$f":"SUM(B2:B19)","v":2.0499999999999998}]
[null,null,null,null,null,"Wtorek"]
[null,null,null,null,null,"Środa"]
[null,null,null,null,null,"Czwartek"]
[null,null,null,null,null,"Piątek"]
[null,null,null,null,null,"Sobota"]
[null,null,null,null,null,"Niedziela"]

{"sheet":"yawor","index":136,"n_rows":8,"n_cols":8,"rows_kept":8,"cut":false,"hidden":false,"merged":[]}
["Data biegu","Przebiegnięte km","Czas biegu","Średnia prędkość","Miesiąc","Dni tygodnia","Łącznie przebiegniętych kilometrów","z 6259,6 km"]
["26-03-2013",3.58,null,null,"Marzec","Poniedziałek",{"$f":"SUM(B2:B18)","v":9.89}]
["1-04-2013",3.22,null,null,"Kwiecień","Wtorek"]
["4-04-2013",3.09,null,null,"Kwiecień","Środa"]
[null,null,null,null,null,"Czwartek"]
[null,null,null,null,null,"Piątek"]
[null,null,null,null,null,"Sobota"]
[null,null,null,null,null,"Niedziela"]

{"sheet":"zacietrzewiony","index":137,"n_rows":14,"n_cols":8,"rows_kept":14,"cut":false,"hidden":false,"merged":[]}
["Data biegu","Przebiegnięte km","Czas biegu","Średnia prędkość","Miesiąc","Dni tygodnia","Łącznie przebiegniętych kilometrów","z 6259,6 km"]
["27-02-2013",10,null,null,"Luty","Poniedziałek",{"$f":"SUM(B2:B21)","v":127.88}]
["4-03-2013",14.37,null,null,"Marzec","Wtorek"]
["5-03-2013",8,null,null,"Marzec","Środa"]
["6-03-2013",14.2,null,null,"Marzec","Czwartek"]
["7-03-2013",4,null,null,"Marzec","Piątek"]
["8-03-2013",14.91,null,null,"Marzec","Sobota"]
["11-03-2013",7.5,null,null,"Marzec","Niedziela"]
["12-03-2013",7.5,null,null,"Marzec"]
["18-03-2013",10,null,null,"Marzec"]
["19-03-2013",6,null,null,"Marzec"]
["24-03-2013",21.01,null,null,"Marzec"]
["4-04-2013",7.5,null,null,"Kwiecień"]
["5-04-2013",2.89,null,null,"Kwiecień"]

{"sheet":"zepsutyzachod","index":138,"n_rows":10,"n_cols":8,"rows_kept":10,"cut":false,"hidden":false,"merged":[]}
["Data biegu","Przebiegnięte km","Czas biegu","Średnia prędkość","Miesiąc","Dni tygodnia","Łącznie przebiegniętych kilometrów","z 6259,6 km"]
["28-02-2013",7.01,null,null,"Luty","Poniedziałek",{"$f":"SUM(B2:B27)","v":56.44}]
["5-03-2013",3,null,null,"Marzec","Wtorek"]
["13-03-2013",5.28,null,null,"Marzec","Środa"]
["17-03-2013",7,null,"5:40 min/km","Marzec","Czwartek"]
["20-03-2013",7.72,null,null,"Marzec","Piątek"]
["26-03-2013",5.23,null,null,"Marzec","Sobota"]
["29-03-2013",5,null,null,"Marzec","Niedziela"]
["1-04-2013",10,null,null,"Kwiecień"]
["3-04-2013",6.2,null,null,"Kwiecień"]

{"sheet":"zioom","index":139,"n_rows":8,"n_cols":8,"rows_kept":8,"cut":false,"hidden":false,"merged":[]}
["Data biegu","Przebiegnięte km","Czas biegu","Średnia prędkość","Miesiąc","Dni tygodnia","Łącznie przebiegniętych kilometrów","z 6259,6 km"]
["27-02-2013",2.13,null,null,"Luty","Poniedziałek",{"$f":"SUM(B2:B17)","v":12.66}]
["2-03-2013",2.13,null,null,"Marzec","Wtorek"]
["6-03-2013",2.83,null,null,"Marzec","Środa"]
["28-03-2013",2.2000000000000002,null,null,"Marzec","Czwartek"]
["3-04-2013",3.37,null,null,"Kwiecień","Piątek"]
[null,null,null,null,null,"Sobota"]
[null,null,null,null,null,"Niedziela"]

{"sheet":"Zlowrogi_Opos","index":140,"n_rows":9,"n_cols":8,"rows_kept":9,"cut":false,"hidden":false,"merged":[]}
["Data biegu","Przebiegnięte km","Czas biegu","Średnia prędkość","Miesiąc","Dni tygodnia","Łącznie przebiegniętych kilometrów","z 6259,6 km"]
["27-02-2013",5,null,null,"Luty","Poniedziałek",{"$f":"SUM(B2:B26)","v":72.599999999999994}]
["4-03-2013",12,null,null,"Marzec","Wtorek"]
["5-03-2013",12,null,null,"Marzec","Środa"]
["9-03-2013",14.6,"1g:19m:07s","5:25 min/km","Marzec","Czwartek"]
["10-03-2013",3,null,null,"Marzec","Piątek"]
["17-03-2013",4,null,null,"Marzec","Sobota"]
["31-03-2013",16,null,null,"Marzec","Niedziela"]
["2-04-2013",6,null,null,"Kwiecień"]

{"sheet":"Szablon","index":141,"n_rows":8,"n_cols":8,"rows_kept":8,"cut":false,"hidden":false,"merged":[]}
["Data biegu","Przebiegnięte km","Czas biegu","Średnia prędkość","Miesiąc","Dni tygodnia","Łącznie przebiegniętych kilometrów","z 6259,6 km"]
[null,null,null,null,null,"Poniedziałek"]
[null,null,null,null,null,"Wtorek"]
[null,null,null,null,null,"Środa"]
[null,null,null,null,null,"Czwartek"]
[null,null,null,null,null,"Piątek"]
[null,null,null,null,null,"Sobota"]
[null,null,null,null,null,"Niedziela"]

{"sheet":"Razem","index":142,"n_rows":140,"n_cols":8,"rows_kept":140,"cut":false,"hidden":false,"merged":[]}
["Nick biegasza","Przebiegnięte kilometry ","Łącznie do tej pory przebiegnięte km",null,null,null,"Zostało"]
["JokerLine",{"$f":"INDIRECT(\"\"&$A2&\"!G2\")","v":297.85000000000002},{"$f":"SUM(B2:B144)","v":6260.2899999999972},"z",6259.6,"km",{"$f":"E2-C2","v":-0.68999999999687134},"km"]
["peradon",294.15999999999997]
["mizaj",251.20999999999998]
["WujekWacek",228.89999999999995]
["mani3kxc",201.13]
["Elveen",185.92000000000002]
["frizik",173.12]
["kamil89qwerty",170.00000000000003]
["hqvkamil",169.04000000000002]
["Lsrd",154.34]
["zacietrzewiony",127.88]
["_w3s",116.71000000000001]
["dimer",116.21]
["tomy86",114.33000000000001]
["Splot",110.22]
["Schwarz_Charakter",107.06999999999998]
["bartov",106.5]
["Meffx",101.41999999999999]
["andrzej194",93.88000000000001]
["Faraleith",91.5]
["teryuu",89.66]
["turbosowa",89.14]
["Takumi",85.97]
["werniol",85.080000000000013]
["lukaszwasyl",82.710000000000008]
["Masterczulki",82.36999999999999]
["PierwszyOstatniraz",80.589999999999989]
["kontra",76.94]
["godfath3r",75.859999999999985]
["Kuba_prezes",75.260000000000005]
["WesolyMorswin",74.290000000000006]
["Loynis",74.09]
["Zlowrogi_Opos",{"$f":"INDIRECT(\"\"&$A34&\"!G2\")","v":72.599999999999994}]
["wwojtus2304",71.789999999999992]
["_K4milk",71.41]
["ciepol",66]
["goomowy",60.900000000000006]
["maciao",57.6]
["zepsutyzachod",56.44]
["piasek43",54.7]
["ursua",53.72]
["sayane",48.740000000000009]
["Strzalka",47.52]
["paprocyniok",45.33]
["necropoleis",43.67]
["mocher_kg",43.339999999999996]
["tiksiu",43.31]
["dadzbog",43.209999999999994]
["Quilo",40.130000000000003]
["sztukamasazu",38.799999999999997]
["GrabkaMan",38.400000000000006]
["Ogoor",37.379999999999995]
["Gangrel",36.22]
["Rubens",35.81]
["marekq",35.1]
["maslan63",33.949999999999996]
["karvon",32.11]
["moss4d",30]
["izzardPL",29.99]
["SiekYersky",28.32]
["Sordi",26.65]
["iotochodzi",26.509999999999998]
["manieq88",25.490000000000002]
["ericcartman",24]
["fisti",{"$f":"INDIRECT(\"\"&$A66&\"!G2\")","v":21.75}]
["Gigi_",21.6]
["pawlakppp",20.75]
["Caroo",20.53]
["Kresowiak",20.28]
["rexio",19.78]
["Dariel",19.239999999999998]
["tomek860827",18.080000000000002]
["Patres",17.600000000000001]
["krzysiulek",16.299999999999997]
["Solitary_Man",16.290000000000003]
["Demand",16.2]
["drain_pipes",14.99]
["Gadzinski",14.68]
["copol1",14.4]
["m_pietrzak",14.29]
["Skurwozaur",13.649999999999999]
["Nered",13.42]
["Cybe",13.219999999999999]
["Deykun",13.209999999999999]
["zioom",12.66]
["madev",12.24]
["Smookie",12]
["stefan_pompka",11.71]
["ViZ_P",10.36]
["gugas",10.100000000000001]
["Madius",10.1]
["Janodemon",10]
["Tapirro",9.9499999999999993]
["yawor",9.89]
["thetot",9.6999999999999993]
["margottst",9.3000000000000007]
["Mario_lgw",{"$f":"INDIRECT(\"\"&$A98&\"!G2\")","v":8.81}]
["NaNiczymSieNieZnam",8.8000000000000007]
["adakox",8.74]
["Scorpio412",8.1999999999999993]
["mBartek89",8]
["emdey",7.14]
["Pyrakus",7]
["ppj",6.86]
["dptd",6.79]
["Vegetassj5",6.7]
["stepBYstep",6.15]
["jestemrowerem",6.01]
["heeidi",6]
["Konalio",6]
["noway",6]
["korpiel",5.9]
["DuDru",5.67]
["Jumper",5.6]
["poprostuMarcin",5.48]
["evenstar",5.4]
["mechaniczny_kurak",5.3]
["paweel",5.2]
["michal__q",5]
["nerqus",4.9000000000000004]
["korzenny",4.5]
["Mariusz_Drugi",3.94]
["guarani",3.9]
["jaras2",3.63]
["Kozzi",3.49]
["aurevoir",3.32]
["Guinness",3.32]
["Markos90",3.26]
["mejsieq",{"$f":"INDIRECT(\"\"&$A130&\"!G2\")","v":3.17}]
["cycki",3]
["surma",3]
["BeSmarter",2.8]
["wojjaskula",2.5]
["szuwarek_mini",2.4]
["xim",2.0499999999999998]
["Marmite",2]
["ktoosiu",1.2]
["Queltas",1.2]
["winnux",1.2]